Workbook

Sheet xsymbol
D5: SYMBOLE | E5: CODE CLAVIER | F5: CODE HTML ISO | G5: CODE HTML NOMMÉ | H5: DESCRIPTION
C6: &alpha; | D6: $\\alpha\\$ | E6: =CONCATENATE(":%s/",C6,"/",D6,"/gie") -> :%s/&alpha;/$\\alpha\\$/gie | F6: &#945; | G6: &alpha; | H6: Alpha minuscule | L6: SYMBOLE | M6: CODE CLAVIER | N6: CODE HTML ISO | O6: CODE HTML NOMMÉ | P6: DESCRIPTION
C7: &beta; | D7: $\\beta\\$ | E7: :%s/&beta;/$\\beta\\$/gie | F7: &#946; | G7: &beta; | H7: Beta minuscule | L7: ! | M7: Alt+ 33 | N7: &#33; | O7: aucun | P7: Point d'exclamation | R7: =CONCATENATE(":%s/",N7,"/",L7,"/gie") -> :%s/&#33;/!/gie
C8: &gamma; | D8: $\\gamma\\$ | E8: :%s/&gamma;/$\\gamma\\$/gie | F8: &#947; | G8: &gamma; | H8: Gamma minuscule | L8: " | M8: Alt+ 34 | N8: &#34; | O8: &quot; | P8: Guillemets à l'anglaise | R8: :%s/&#34;/"/gie
C9: &delta; | D9: $\\delta\\$ | E9: :%s/&delta;/$\\delta\\$/gie | F9: &#948; | G9: &delta; | H9: Delta minuscule | L9: # | M9: Alt+ 35 | N9: &#35; | O9: aucun | P9: Dièse / Numéro | R9: :%s/&#35;/#/gie
C10: &epsilon; | D10: $\\epsilon\\$ | E10: :%s/&epsilon;/$\\epsilon\\$/gie | F10: &#949; | G10: &epsilon; | H10: Epsilon minuscule | L10: $ | M10: Alt+ 36 | N10: &#36; | O10: &dollar; | P10: Dollar | R10: :%s/&#36;/$/gie
C11: &zeta; | D11: $\\zeta\\$ | E11: :%s/&zeta;/$\\zeta\\$/gie | F11: &#950; | G11: &zeta; | H11: Zeta minuscule | L11: \\% | M11: Alt+ 37 | N11: &#37; | O11: aucun | P11: Pourcent | R11: :%s/&#37;/\\%/gie
C12: &eta; | D12: $\\eta\\$ | E12: :%s/&eta;/$\\eta\\$/gie | F12: &#951; | G12: &eta; | H12: Eta minuscule | L12: \\& | M12: Alt+ 38 | N12: &#38; | O12: &amp; | P12: Esperluette | R12: :%s/&#38;/\\&/gie
C13: &theta; | D13: $\\theta\\$ | E13: :%s/&theta;/$\\theta\\$/gie | F13: &#952; | G13: &theta; | H13: Theta minuscule | L13: ' | M13: Alt+ 39 | N13: &#39; | O13: &apos; | P13: Apostrophe | R13: :%s/&#39;/'/gie
C14: &iota; | D14: $\\iota\\$ | E14: :%s/&iota;/$\\iota\\$/gie | F14: &#953; | G14: &iota; | H14: Iota minuscule | L14: ( | M14: Alt+ 40 | N14: &#40; | O14: aucun | P14: Parenthèse gauche | R14: :%s/&#40;/(/gie
C15: &kappa; | D15: $\\kappa\\$ | E15: :%s/&kappa;/$\\kappa\\$/gie | F15: &#954; | G15: &kappa; | H15: Kappa minuscule | L15: ) | M15: Alt+ 41 | N15: &#41; | O15: aucun | P15: Parenthèse droite | R15: :%s/&#41;/)/gie
C16: &lambda; | D16: $\\lambda\\$ | E16: :%s/&lambda;/$\\lambda\\$/gie | F16: &#955; | G16: &lambda; | H16: Lambda minuscule | L16: * | M16: Alt+ 42 | N16: &#42; | O16: aucun | P16: Astérisque | R16: :%s/&#42;/*/gie
C17: &mu; | D17: $\\mu\\$ | E17: :%s/&mu;/$\\mu\\$/gie | F17: &#956; | G17: &mu; | H17: Mu minuscule | L17: + | M17: Alt+ 43 | N17: &#43; | O17: aucun | P17: Plus | R17: :%s/&#43;/+/gie
C18: &nu; | D18: $\\nu\\$ | E18: :%s/&nu;/$\\nu\\$/gie | F18: &#957; | G18: &nu; | H18: Nu minuscule | L18: , | M18: Alt+ 44 | N18: &#44; | O18: aucun | P18: Virgule | R18: :%s/&#44;/,/gie
C19: &xi; | D19: $\\xi\\$ | E19: :%s/&xi;/$\\xi\\$/gie | F19: &#958; | G19: &xi; | H19: Xi minuscule | L19: - | M19: Alt+ 45 | N19: &#45; | O19: aucun | P19: Moins | R19: :%s/&#45;/-/gie
C20: &omicron; | D20: $\\omicron\\$ | E20: :%s/&omicron;/$\\omicron\\$/gie | F20: &#959; | G20: &omicron; | H20: Omicron minuscule | L20: . | M20: Alt+ 46 | N20: &#46; | O20: aucun | P20: Point | R20: :%s/&#46;/./gie
C21: &pi; | D21: $\\pi\\$ | E21: :%s/&pi;/$\\pi\\$/gie | F21: &#960; | G21: &pi; | H21: Pi minuscule | L21: \/ | M21: Alt+ 47 | N21: &#47; | O21: aucun | P21: Barre oblique (slash) | R21: :%s/&#47;/\//gie
C22: &rho; | D22: $\\rho\\$ | E22: :%s/&rho;/$\\rho\\$/gie | F22: &#961; | G22: &rho; | H22: Rho minuscule | L22: : | M22: Alt+ 58 | N22: &#58; | O22: aucun | P22: Double point | R22: :%s/&#58;/:/gie
C23: &sigma; | D23: $\\sigma\\$ | E23: :%s/&sigma;/$\\sigma\\$/gie | F23: &#963; | G23: &sigma; | H23: Sigma minuscule | L23: ; | M23: Alt+ 59 | N23: &#59; | O23: aucun | P23: Point-virgule | R23: :%s/&#59;/;/gie
C24: &tau; | D24: $\\tau\\$ | E24: :%s/&tau;/$\\tau\\$/gie | F24: &#964; | G24: &tau; | H24: Tau minuscule | L24: < | M24: Alt+ 60 | N24: &#60; | O24: &lt; | P24: Signe inférieur | R24: :%s/&#60;/</gie
C25: &upsilon; | D25: $\\upsilon\\$ | E25: :%s/&upsilon;/$\\upsilon\\$/gie | F25: &#965; | G25: &upsilon; | H25: Upsilon minuscule | L25: = | M25: Alt+ 60 | N25: &#61; | O25: aucun | P25: Égal | R25: :%s/&#61;/=/gie
C26: &phi; | D26: $\\phi\\$ | E26: :%s/&phi;/$\\phi\\$/gie | F26: &#966; | G26: &phi; | H26: Phi minuscule | L26: > | M26: Alt+ 62 | N26: &#62; | O26: &gt; | P26: Signe supérieur | R26: :%s/&#62;/>/gie
C27: &chi; | D27: $\\chi\\$ | E27: :%s/&chi;/$\\chi\\$/gie | F27: &#967; | G27: &chi; | H27: Chi minuscule | L27: ? | M27: Alt+ 63 | N27: &#63; | O27: aucun | P27: Point d'interrogation | R27: :%s/&#63;/?/gie
C28: &psi; | D28: $\\psi\\$ | E28: :%s/&psi;/$\\psi\\$/gie | F28: &#968; | G28: &psi; | H28: Psi minuscule | L28: @ | M28: Alt+ 64 | N28: &#64; | O28: aucun | P28: Arobase | R28: :%s/&#64;/@/gie
C29: &omega; | D29: $\\omega\\$ | E29: :%s/&omega;/$\\omega\\$/gie | F29: &#969; | G29: &omega; | H29: Omega minuscule | L29: [ | M29: Alt+ 91 | N29: &#91; | O29: aucun | P29: Crochet gauche | R29: :%s/&#91;/[/gie
C30: &Alpha; | D30: $\\Alpha\\$ | E30: :%s/&Alpha;/$\\Alpha\\$/gie | F30: &#913; | G30: &Alpha; | H30: Alpha majuscule | L30: \\ | M30: Alt+ 92 | N30: &#92; | O30: aucun | P30: Barre oblique inversée | R30: :%s/&#92;/\\/gie
C31: &Beta; | D31: $\\Beta\\$ | E31: :%s/&Beta;/$\\Beta\\$/gie | F31: &#914; | G31: &Beta; | H31: Beta majuscule | L31: ] | M31: Alt+ 93 | N31: &#93; | O31: aucun | P31: Crochet droit | R31: :%s/&#93;/]/gie
C32: &Gamma; | D32: $\\Gamma\\$ | E32: :%s/&Gamma;/$\\Gamma\\$/gie | F32: &#915; | G32: &Gamma; | H32: Gamma majuscule | L32: ^ | M32: Alt+ 94 | N32: &#94; | O32: aucun | P32: Accent circonflexe | R32: :%s/&#94;/^/gie
C33: &Delta; | D33: $\\Delta\\$ | E33: :%s/&Delta;/$\\Delta\\$/gie | F33: &#916; | G33: &Delta; | H33: Delta majuscule | L33: \_ | M33: Alt+ 95 | N33: &#95; | O33: aucun | P33: Tiret bas (underscore) | R33: :%s/&#95;/\_/gie
C34: &Epsilon; | D34: $\\Epsilon\\$ | E34: :%s/&Epsilon;/$\\Epsilon\\$/gie | F34: &#917; | G34: &Epsilon; | H34: Epsilon majuscule | L34: ` | M34: Alt+ 96 | N34: &#96; | O34: aucun | P34: Accent grave | R34: :%s/&#96;/`/gie
C35: &Zeta; | D35: $\\Zeta\\$ | E35: :%s/&Zeta;/$\\Zeta\\$/gie | F35: &#918; | G35: &Zeta; | H35: Zeta majuscule | L35: { | M35: Alt+ 123 | N35: &#123; | O35: aucun | P35: Accolade gauche | R35: :%s/&#123;/{/gie
C36: &Eta; | D36: $\\Eta\\$ | E36: :%s/&Eta;/$\\Eta\\$/gie | F36: &#919; | G36: &Eta; | H36: Eta majuscule | L36: | | M36: Alt+ 124 | N36: &#124; | O36: aucun | P36: Barre verticale | R36: :%s/&#124;/|/gie
C37: &Theta; | D37: $\\Theta\\$ | E37: :%s/&Theta;/$\\Theta\\$/gie | F37: &#920; | G37: &Theta; | H37: Theta majuscule | L37: } | M37: Alt+ 125 | N37: &#125; | O37: aucun | P37: Accolade droite | R37: :%s/&#125;/}/gie
C38: &Iota; | D38: $\\Iota\\$ | E38: :%s/&Iota;/$\\Iota\\$/gie | F38: &#921; | G38: &Iota; | H38: Iota majuscule | L38: ~ | M38: Alt+ 126 | N38: &#126; | O38: aucun | P38: Tilde | R38: :%s/&#126;/~/gie
C39: &Kappa; | D39: $\\Kappa\\$ | E39: :%s/&Kappa;/$\\Kappa\\$/gie | F39: &#922; | G39: &Kappa; | H39: Kappa majuscule | L39: ¡ | M39: Alt+ 161 | N39: &#161; | O39: &iexcl; | P39: Point d'exclamation inversé | R39: =CONCATENATE(":%s/",N39,"/",L39,"/gie") -> :%s/&#161;/¡/gie
C40: &Lambda; | D40: $\\Lambda\\$ | E40: :%s/&Lambda;/$\\Lambda\\$/gie | F40: &#923; | G40: &Lambda; | H40: Lambda majuscule | L40: ¦ | M40: Alt+ 166 | N40: &#166; | O40: &brvbar; | P40: Barre cassée verticale | R40: :%s/&#166;/¦/gie
C41: &Mu; | D41: $\\Mu\\$ | E41: :%s/&Mu;/$\\Mu\\$/gie | F41: &#924; | G41: &Mu; | H41: Mu majuscule | L41: § | M41: Alt+ 167 | N41: &#167; | O41: &sect; | P41: Paragraphe | R41: :%s/&#167;/§/gie
C42: &Nu; | D42: $\\Nu\\$ | E42: :%s/&Nu;/$\\Nu\\$/gie | F42: &#925; | G42: &Nu; | H42: Nu majuscule | L42: ¨ | M42: Alt+ 168 | N42: &#168; | O42: &uml; | P42: Diaérèse | R42: :%s/&#168;/¨/gie
C43: &Xi; | D43: $\\Xi\\$ | E43: :%s/&Xi;/$\\Xi\\$/gie | F43: &#926; | G43: &Xi; | H43: Xi majuscule | L43: © | M43: Alt+ 169 | N43: &#169; | O43: &copy; | P43: Signe de copyright | R43: :%s/&#169;/©/gie
C44: &Omicron; | D44: $\\Omicron\\$ | E44: :%s/&Omicron;/$\\Omicron\\$/gie | F44: &#927; | G44: &Omicron; | H44: Omicron majuscule | L44: ª | M44: Alt+ 170 | N44: &#170; | O44: &ordf; | P44: Indicateur ordinal féminin | R44: :%s/&#170;/ª/gie
C45: &Pi; | D45: $\\Pi\\$ | E45: :%s/&Pi;/$\\Pi\\$/gie | F45: &#928; | G45: &Pi; | H45: Pi majuscule | L45: « | M45: Alt+ 171 | N45: &#171; | O45: &laquo; | P45: Guillemets à la française (ouverts) | R45: :%s/&#171;/«/gie
C46: &Rho; | D46: $\\Rho\\$ | E46: :%s/&Rho;/$\\Rho\\$/gie | F46: &#929; | G46: &Rho; | H46: Rho majuscule | L46: ® | M46: Alt+ 174 | N46: &#174; | O46: &reg; | P46: Signe de marque déposée (Registered) | R46: :%s/&#174;/®/gie
C47: &Sigma; | D47: $\\Sigma\\$ | E47: :%s/&Sigma;/$\\Sigma\\$/gie | F47: &#931; | G47: &Sigma; | H47: Sigma majuscule | L47: ¯ | M47: Alt+ 175 | N47: &#175; | O47: &macr; | P47: Macron | R47: :%s/&#175;/¯/gie
C48: &Tau; | D48: $\\Tau\\$ | E48: :%s/&Tau;/$\\Tau\\$/gie | F48: &#932; | G48: &Tau; | H48: Tau majuscule | L48: ° | M48: Alt+ 176 | N48: &#176; | O48: &deg; | P48: Degré | R48: :%s/&#176;/°/gie
C49: &Upsilon; | D49: $\\Upsilon\\$ | E49: :%s/&Upsilon;/$\\Upsilon\\$/gie | F49: &#933; | G49: &Upsilon; | H49: Upsilon majuscule | L49: ± | M49: Alt+ 177 | N49: &#177; | O49: &plusmn; | P49: Signe plus-moins | R49: :%s/&#177;/±/gie
C50: &Phi; | D50: $\\Phi\\$ | E50: :%s/&Phi;/$\\Phi\\$/gie | F50: &#934; | G50: &Phi; | H50: Phi majuscule | L50: ² | M50: Alt+ 178 | N50: &#178; | O50: &sup2; | P50: Exposant deux | R50: :%s/&#178;/²/gie
C51: &Chi; | D51: $\\Chi\\$ | E51: :%s/&Chi;/$\\Chi\\$/gie | F51: &#935; | G51: &Chi; | H51: Chi majuscule | L51: ³ | M51: Alt+ 179 | N51: &#179; | O51: &sup3; | P51: Exposant trois | R51: :%s/&#179;/³/gie
C52: &Psi; | D52: $\\Psi\\$ | E52: :%s/&Psi;/$\\Psi\\$/gie | F52: &#936; | G52: &Psi; | H52: Psi majuscule | L52: ´ | M52: Alt+ 180 | N52: &#180; | O52: &aigu; | P52: Accent aigu | R52: :%s/&#180;/´/gie
C53: &Omega; | D53: $\\Omega\\$ | E53: :%s/&Omega;/$\\Omega\\$/gie | F53: &#937; | G53: &Omega; | H53: Omega majuscule | L53: µ | M53: Alt+ 181 | N53: &#181; | O53: &micro; | P53: Micro | R53: :%s/&#181;/µ/gie
L54: · | M54: Alt+ 183 | N54: &#183; | O54: &middot; | P54: Point médian | R54: :%s/&#183;/·/gie
L55: ¹ | M55: Alt+ 185 | N55: &#185; | O55: &sup1; | P55: Exposant un | R55: :%s/&#185;/¹/gie
L56: º | M56: Alt+ 186 | N56: &#186; | O56: &ordm; | P56: Indicateur ordinal masculin | R56: :%s/&#186;/º/gie
L57: » | M57: Alt+ 187 | N57: &#187; | O57: &raquo; | P57: Guillemets à la française (fermés) | R57: :%s/&#187;/»/gie
L58: ¼ | M58: Alt+ 188 | N58: &#188; | O58: &frac14; | P58: Fraction un quart | R58: :%s/&#188;/¼/gie
L59: ½ | M59: Alt+ 189 | N59: &#189; | O59: &frac12; | P59: Fraction un demi | R59: :%s/&#189;/½/gie
L60: ¾ | M60: Alt+ 190 | N60: &#190; | O60: &frac34; | P60: Fraction trois quarts | R60: :%s/&#190;/¾/gie
L61: ¿ | M61: Alt+ 191 | N61: &#191 | O61: &iquest; | P61: Point d'interrogation inversé | R61: :%s/&#191/¿/gie
L62: × | M62: Alt+ 215 | N62: &#215 | O62: &times; | P62: Signe de multiplication | R62: :%s/&#215/×/gie
L63: ÷ | M63: Alt+ 247 | N63: &#247 | O63: &divide; | P63: Signe de division | R63: :%s/&#247/÷/gie
L64: ∞ | M64: Alt+ 8734 | N64: &#8734; | O64: &infin; | P64: Infini | R64: :%s/&#8734;/∞/gie
L65: ‰ | M65: Alt+ 8240 | N65: &#8240; | O65: &permil; | P65: Pour mille | R65: :%s/&#8240;/‰/gie
L66: \\textsuperscript{TM} | M66: Alt+ 8482 | N66: &#8482; | O66: &trade; | P66: Signe de marque déposée (Registered Trademark) | R66: :%s/&#8482;/\\textsuperscript{TM}/gie

Sheet xcolor
A1: 1 | B1: 29 | D1: 1 | E1: =CHAR( D1) ->  | F1: 34 | G1: =CHAR( F1) -> " | H1: 67 | I1: =CHAR( H1) -> C | J1: 100 | K1: =CHAR( J1) -> d | L1: 133 | M1: =CHAR( L1) -> … | N1: 166 | O1: =CHAR( N1) -> ¦ | P1: 199 | Q1: =CHAR( P1) -> Ç | R1: 232 | S1: =CHAR( R1) -> è | T1: POUR VIM : | U1: Accent | V1: Aspect | W1: LaTeX | X1: HTML | Y1: méta | Z1: compose | AD1: Nom de l'accent | AE1: Lettre | AF1: HTML
A2: 2 | B2: 30 | D2: 2 | E2:  | F2: 35 | G2: =CHAR( F2) -> # | H2: 68 | I2: =CHAR( H2) -> D | J2: 101 | K2: =CHAR( J2) -> e | L2: 134 | M2: =CHAR( L2) -> † | N2: 167 | O2: =CHAR( N2) -> § | P2: 200 | Q2: =CHAR( P2) -> È | R2: 233 | S2: =CHAR( R2) -> é | T2: =CONCATENATE(":%s/",V2,"/\",W2,"/ge") -> :%s//\/ge | U2: paragraphe | V2:  | X2: &para; | Y2: M-' | Z2: C s o | AD2: a accent grave | AE2: à | AF2: &agrave; | AG2: à | AH2: =CONCATENATE(":%s/",AF2,"/",AG2,"/gie") -> :%s/&agrave;/à/gie
A3: 3 | B3: 31 | D3: 3 | E3:  | F3: 36 | G3: =CHAR( F3) -> $ | H3: 69 | I3: E | J3: 102 | K3: =CHAR( J3) -> f | L3: 135 | M3: =CHAR( L3) -> ‡ | N3: 168 | O3: =CHAR( N3) -> ¨ | P3: 201 | Q3: =CHAR( P3) -> É | R3: 234 | S3: ê | T3: =CONCATENATE(":%s/",V3,"/\",W3,"/ge") -> :%s/«/\<</ge | U3: guillemet français ouvrant | V3: « | W3: << | X3: &laquo; | Y3: M-+ | Z3: C < < | AD3: A accent grave | AE3: À | AF3: &Agrave; | AG3: À | AH3: =CONCATENATE(":%s/",AF3,"/",AG3,"/gie") -> :%s/&Agrave;/À/gie
A4: 4 | B4: 32 | D4: 4 | E4:  | F4: 37 | G4: % | H4: 70 | I4: F | J4: 103 | K4: =CHAR( J4) -> g | L4: 136 | M4: =CHAR( L4) -> ˆ | N4: 169 | O4: =CHAR( N4) -> © | P4: 202 | Q4: =CHAR( P4) -> Ê | R4: 235 | S4: ë | T4: :%s/»/\>>/ge | U4: guillemet français fermant | V4: » | W4: >> | X4: &raquo; | Y4: M-; | Z4: C > > | AD4: a accent aigu | AE4: á | AF4: &aacute; | AG4: á | AH4: :%s/&aacute;/á/gie
A5: 5 | B5: 33 | D5: 5 | E5:  | F5: 38 | G5: & | H5: 71 | I5: G | J5: 104 | K5: =CHAR( J5) -> h | L5: 137 | M5: =CHAR( L5) -> ‰ | N5: 170 | O5: =CHAR( N5) -> ª | P5: 203 | Q5: =CHAR( P5) -> Ë | R5: 236 | S5: ì | T5: :%s/á/\\'a/ge | U5: a accent aigu | V5: á | W5: \'a | X5: &aacute; | Y5: M-a | Z5: C ' a | AD5: A accent aigu | AE5: Á | AF5: &Aacute; | AG5: Á | AH5: :%s/&Aacute;/Á/gie
A6: 6 | B6: 34 | D6: 6 | E6:  | F6: 39 | G6: ' | H6: 72 | I6: H | J6: 105 | K6: =CHAR( J6) -> i | L6: 138 | M6: =CHAR( L6) -> Š | N6: 171 | O6: =CHAR( N6) -> « | P6: 204 | Q6: =CHAR( P6) -> Ì | R6: 237 | S6: í | T6: :%s/à/\\`a/ge | U6: a accent grave | V6: à | W6: \`a | X6: &agrave; | Y6: M-` | Z6: C ` a | AD6: a accent circonflexe | AE6: â | AF6: &acirc; | AG6: â | AH6: :%s/&acirc;/â/gie
A7: 7 | B7: 35 | D7: 7 | E7:  | F7: 40 | G7: ( | H7: 73 | I7: I | J7: 106 | K7: =CHAR( J7) -> j | L7: 139 | M7: =CHAR( L7) -> ‹ | N7: 172 | O7: =CHAR( N7) -> ¬ | P7: 205 | Q7: =CHAR( P7) -> Í | R7: 238 | S7: î | T7: :%s/â/\\^a/ge | U7: a accent circonflexe | V7: â | W7: \^a | X7: &acirc; | Y7: M-b | Z7: C ^ a | AD7: A accent circonflexe | AE7: Â | AF7: &Acirc; | AG7: Â | AH7: :%s/&Acirc;/Â/gie
A8: 8 | B8: 36 | D8: 8 | E8:  | F8: 41 | G8: ) | H8: 74 | I8: J | J8: 107 | K8: =CHAR( J8) -> k | L8: 140 | M8: =CHAR( L8) -> Œ | N8: 173 | O8: =CHAR( N8) -> ­ | P8: 206 | Q8: =CHAR( P8) -> Î | R8: 239 | S8: ï | T8: :%s/ä/\\"a/ge | U8: a tréma | V8: ä | W8: \"a | X8: &auml; | Y8: M-d | Z8: C " a | AD8: a tilde | AE8: ã | AF8: &atilde; | AG8: ã | AH8: :%s/&atilde;/ã/gie
A9: 9 | B9: 37 | D9: 9 | F9: 42 | G9: * | H9: 75 | I9: K | J9: 108 | K9: =CHAR( J9) -> l | L9: 141 | M9: =CHAR( L9) ->  | N9: 174 | O9: =CHAR( N9) -> ® | P9: 207 | Q9: =CHAR( P9) -> Ï | R9: 240 | S9: ð | T9: :%s/Ä/\\"A/ge | U9: A tréma | V9: Ä | W9: \"A | X9: &Auml; | Y9: M-D | Z9: C " A | AD9: A tilde | AE9: Ã | AF9: &Atilde; | AG9: Ã | AH9: :%s/&Atilde;/Ã/gie
A10: 10 | B10: 38 | D10: 10 | F10: 43 | G10: + | H10: 76 | I10: L | J10: 109 | K10: =CHAR( J10) -> m | L10: 142 | M10: =CHAR( L10) -> Ž | N10: 175 | O10: =CHAR( N10) -> ¯ | P10: 208 | Q10: =CHAR( P10) -> Ð | R10: 241 | S10: ñ | T10: :%s/å/\\aa/ge | U10: a rond | V10: å | W10: \aa | X10: &aring; | Y10: M-e | Z10: C * a | AD10: a tréma | AE10: ä | AF10: &auml; | AG10: ä | AH10: :%s/&auml;/ä/gie
A11: 11 | B11: 39 | D11: 11 | F11: 44 | G11: , | H11: 77 | I11: M | J11: 110 | K11: =CHAR( J11) -> n | L11: 143 | M11: =CHAR( L11) ->  | N11: 176 | O11: =CHAR( N11) -> ° | P11: 209 | Q11: =CHAR( P11) -> Ñ | R11: 242 | S11: ò | T11: :%s/Å/\\AA/ge | U11: A rond | V11: Å | W11: \AA | X11: &Aring; | Y11: M-E | Z11: C * A | AD11: A tréma | AE11: Ä | AF11: &Auml; | AG11: Ä | AH11: :%s/&Auml;/Ä/gie
A12: 12 | B12: 40 | D12: 12 | F12: 45 | G12: - | H12: 78 | I12: N | J12: 111 | K12: =CHAR( J12) -> o | L12: 144 | M12: =CHAR( L12) ->  | N12: 177 | O12: =CHAR( N12) -> ± | P12: 210 | Q12: =CHAR( P12) -> Ò | R12: 243 | S12: ó | T12: :%s/æ/\\ae/ge | U12: ae ligaturé | V12: æ | W12: \ae | X12: &aelig; | Y12: M-f | Z12: C a e | AD12: a rond | AE12: å | AF12: &aring; | AG12: å | AH12: :%s/&aring;/å/gie
A13: 13 | B13: 41 | D13: 13 | F13: 46 | G13: . | H13: 79 | I13: O | J13: 112 | K13: =CHAR( J13) -> p | L13: 145 | M13: =CHAR( L13) -> ‘ | N13: 178 | O13: =CHAR( N13) -> ² | P13: 211 | Q13: =CHAR( P13) -> Ó | R13: 244 | S13: ô | T13: :%s/Æ/\\AE/ge | U13: AE ligaturé | V13: Æ | W13: \AE | X13: &AElig; | Y13: M-F | Z13: C A E | AD13: A rond | AE13: Å | AF13: &Aring; | AG13: Å | AH13: :%s/&Aring;/Å/gie
A14: 14 | B14: 42 | D14: 14 | E14:  | F14: 47 | G14: / | H14: 80 | I14: P | J14: 113 | K14: =CHAR( J14) -> q | L14: 146 | M14: =CHAR( L14) -> ’ | N14: 179 | O14: =CHAR( N14) -> ³ | P14: 212 | Q14: =CHAR( P14) -> Ô | R14: 245 | S14: õ | T14: :%s/c/\/ge | U14: copyright | V14: c | X14: &copy; | Y14: M-) | Z14: C c 0 | AD14: ae ligaturé | AE14: æ | AF14: &aelig; | AG14: æ | AH14: :%s/&aelig;/æ/gie
A15: 15 | B15: 43 | D15: 15 | E15:  | F15: 48 | G15: 0 | H15: 81 | I15: Q | J15: 114 | K15: =CHAR( J15) -> r | L15: 147 | M15: =CHAR( L15) -> “ | N15: 180 | O15: =CHAR( N15) -> ´ | P15: 213 | Q15: =CHAR( P15) -> Õ | R15: 246 | S15: ö | T15: :%s/ç/\\c c/ge | U15: c cédille | V15: ç | W15: \c c | X15: &ccedil; | Y15: M-g | Z15: C , c | AD15: AE ligaturé | AE15: Æ | AF15: &AElig; | AG15: Æ | AH15: :%s/&AElig;/Æ/gie
A16: 16 | B16: 44 | D16: 16 | E16:  | F16: 49 | G16: 1 | H16: 82 | I16: R | J16: 115 | K16: =CHAR( J16) -> s | L16: 148 | M16: =CHAR( L16) -> ” | N16: 181 | O16: =CHAR( N16) -> µ | P16: 214 | Q16: =CHAR( P16) -> Ö | R16: 247 | S16: ÷ | T16: :%s/Ç/\\c C/ge | U16: C cédille | V16: Ç | W16: \c C | X16: &Ccedil; | Y16: M-G | Z16: C , C | AD16: e accent grave | AE16: è | AF16: &egrave; | AG16: è | AH16: :%s/&egrave;/è/gie
A17: 17 | B17: 45 | D17: 17 | E17:  | F17: 50 | G17: 2 | H17: 83 | I17: S | J17: 116 | K17: =CHAR( J17) -> t | L17: 149 | M17: =CHAR( L17) -> • | N17: 182 | O17: =CHAR( N17) -> ¶ | P17: 215 | Q17: =CHAR( P17) -> × | R17: 248 | S17: ø | T17: :%s/E/\\"E/ge | U17: E tréma | V17: E | W17: \"E | X17: &Euml; | Y17: M-K | Z17: C " E | AD17: E accent grave | AE17: È | AF17: &Egrave; | AG17: È | AH17: :%s/&Egrave;/È/gie
A18: 18 | B18: 46 | D18: 18 | E18: =CHAR( D18) ->  | F18: 51 | G18: 3 | H18: 84 | I18: T | J18: 117 | K18: =CHAR( J18) -> u | L18: 150 | M18: =CHAR( L18) -> – | N18: 183 | O18: =CHAR( N18) -> · | P18: 216 | Q18: =CHAR( P18) -> Ø | R18: 249 | S18: ù | T18: :%s/é/\\'e/ge | U18: e accent aigu | V18: é | W18: \'e | X18: &eacute; | Y18: M-i | Z18: C ' e | AD18: e accent aigu | AE18: é | AF18: &eacute; | AG18: é | AH18: :%s/&eacute;/é/gie
A19: 19 | B19: 47 | D19: 19 | E19: =CHAR( D19) ->  | F19: 52 | G19: 4 | H19: 85 | I19: U | J19: 118 | K19: =CHAR( J19) -> v | L19: 151 | M19: =CHAR( L19) -> — | N19: 184 | O19: =CHAR( N19) -> ¸ | P19: 217 | Q19: =CHAR( P19) -> Ù | R19: 250 | S19: ú | T19: :%s/É/\\'E/ge | U19: E accent aigu | V19: É | W19: \'E | X19: &Eacute; | Y19: M-I | Z19: C ' E | AD19: E accent aigu | AE19: É | AF19: &Eacute; | AG19: É | AH19: :%s/&Eacute;/É/gie
A20: 20 | B20: 48 | D20: 20 | E20:  | F20: 53 | G20: 5 | H20: 86 | I20: V | J20: 119 | K20: =CHAR( J20) -> w | L20: 152 | M20: =CHAR( L20) -> ˜ | N20: 185 | O20: =CHAR( N20) -> ¹ | P20: 218 | Q20: =CHAR( P20) -> Ú | R20: 251 | S20: û | T20: :%s/è/\\`e/ge | U20: e accent grave | V20: è | W20: \`e | X20: &egrave; | Y20: M-h | Z20: C ` e | AD20: e accent circonflexe | AE20: ê | AF20: &ecirc; | AG20: ê | AH20: :%s/&ecirc;/ê/gie
A21: 21 | B21: 49 | D21: 21 | E21:  | F21: 54 | G21: 6 | H21: 87 | I21: W | J21: 120 | K21: =CHAR( J21) -> x | L21: 153 | M21: =CHAR( L21) -> ™ | N21: 186 | O21: =CHAR( N21) -> º | P21: 219 | Q21: =CHAR( P21) -> Û | R21: 252 | S21: ü | T21: :%s/ê/\\^e/ge | U21: e accent circonflexe | V21: ê | W21: \^e | X21: &ecirc; | Y21: M-j | Z21: C ^ e | AD21: E accent circonflexe | AE21: Ê | AF21: &Ecirc; | AG21: Ê | AH21: :%s/&Ecirc;/Ê/gie
A22: 22 | B22: 50 | D22: 22 | E22:  | F22: 55 | G22: 7 | H22: 88 | I22: X | J22: 121 | K22: =CHAR( J22) -> y | L22: 154 | M22: =CHAR( L22) -> š | N22: 187 | O22: =CHAR( N22) -> » | P22: 220 | Q22: =CHAR( P22) -> Ü | R22: 253 | S22: ý | T22: :%s/ë/\\"e/ge | U22: e tréma | V22: ë | W22: \"e | X22: &euml; | Y22: M-k | Z22: C " e | AD22: e tréma | AE22: ë | AF22: &euml; | AG22: ë | AH22: :%s/&euml;/ë/gie
A23: 23 | B23: 51 | D23: 23 | E23:  | F23: 56 | G23: 8 | H23: 89 | I23: Y | J23: 122 | K23: =CHAR( J23) -> z | L23: 155 | M23: =CHAR( L23) -> › | N23: 188 | O23: =CHAR( N23) -> ¼ | P23: 221 | Q23: =CHAR( P23) -> Ý | R23: 254 | S23: þ | T23: :%s/í/\\'i/ge | U23: i accent aigu | V23: í | W23: \'i | X23: &iacute; | Y23: M-m | Z23: C ' i | AD23: E tréma | AE23: Ë | AF23: &Euml; | AG23: Ë | AH23: :%s/&Euml;/Ë/gie
A24: 24 | B24: 52 | D24: 24 | E24:  | F24: 57 | G24: 9 | H24: 90 | I24: Z | J24: 123 | K24: =CHAR( J24) -> { | L24: 156 | M24: =CHAR( L24) -> œ | N24: 189 | O24: =CHAR( N24) -> ½ | P24: 222 | Q24: =CHAR( P24) -> Þ | R24: 255 | S24: ÿ | T24: :%s/ì/\\`i/ge | U24: i accent grave | V24: ì | W24: \`i | X24: &igrave; | Y24: M-l | Z24: C ` i | AD24: i accent grave | AE24: ì | AF24: &igrave; | AG24: ì | AH24: :%s/&igrave;/ì/gie
A25: 25 | B25: 53 | D25: 25 | E25:  | F25: 58 | G25: : | H25: 91 | I25: [ | J25: 124 | K25: =CHAR( J25) -> | | L25: 157 | M25: =CHAR( L25) ->  | N25: 190 | O25: =CHAR( N25) -> ¾ | P25: 223 | Q25: =CHAR( P25) -> ß | R25: 255 lettres de l'alphabet : | T25: :%s/î/\\^i/ge | U25: i accent circonflexe | V25: î | W25: \^i | X25: &icirc; | Y25: M-n | Z25: C ^ i | AD25: I accent grave | AE25: Ì | AF25: &Igrave; | AG25: Ì | AH25: :%s/&Igrave;/Ì/gie
A26: 26 | B26: 54 | D26: 26 | E26:  | F26: 59 | G26: ; | H26: 92 | I26: \ | J26: 125 | K26: =CHAR( J26) -> } | L26: 158 | M26: =CHAR( L26) -> ž | N26: 191 | O26: =CHAR( N26) -> ¿ | P26: 224 | Q26: =CHAR( P26) -> à | T26: :%s/ï/\\"i/ge | U26: i tréma | V26: ï | W26: \"i | X26: &iuml; | Y26: M-o | Z26: C " i | AD26: i accent aigu | AE26: í | AF26: &iacute; | AG26: í | AH26: :%s/&iacute;/í/gie
A27: 27 | B27: 55 | D27: 27 | E27:  | F27: 60 | G27: < | H27: 93 | I27: ] | J27: 126 | K27: =CHAR( J27) -> ~ | L27: 159 | M27: =CHAR( L27) -> Ÿ | N27: 192 | O27: =CHAR( N27) -> À | P27: 225 | Q27: =CHAR( P27) -> á | T27: :%s/ñ/\\~n/ge | U27: n tilde | V27: ñ | W27: \~n | X27: &ntilde; | Y27: M-q | Z27: C ~ n | AD27: I accent aigu | AE27: Í | AF27: &Iacute; | AG27: Í | AH27: :%s/&Iacute;/Í/gie
A28: 28 | B28: 56 | D28: 28 | E28: =CHAR( D28) ->  | F28: 61 | G28: = | H28: 94 | I28: ^ | J28: 127 | K28: =CHAR( J28) ->  | L28: 160 | M28: =CHAR( L28) ->  | N28: 193 | O28: =CHAR( N28) -> Á | P28: 226 | Q28: =CHAR( P28) -> â | R28: VBA : | S28: CHR | T28: :%s/Ñ/\\~N/ge | U28: N tilde | V28: Ñ | W28: \~N | X28: &Ntilde; | Y28: M-Q | Z28: C ~ N | AD28: i accent circonflexe | AE28: î | AF28: &icirc; | AG28: î | AH28: :%s/&icirc;/î/gie
D29: 29 | F29: 62 | G29: > | H29: 95 | I29: _ | J29: 128 | K29: =CHAR( J29) -> € | L29: 161 | M29: =CHAR( L29) -> ¡ | N29: 194 | O29: =CHAR( N29) -> Â | P29: 227 | Q29: =CHAR( P29) -> ã | T29: :%s/ó/\\'o/ge | U29: o accent aigu | V29: ó | W29: \'o | X29: &oacute; | Y29: M-s | Z29: C ' o | AD29: I accent circonflexe | AE29: Î | AF29: &Icirc; | AG29: Î | AH29: :%s/&Icirc;/Î/gie
D30: 30 | F30: 63 | G30: ? | H30: 96 | I30: ` | J30: 129 | K30: =CHAR( J30) ->  | L30: 162 | M30: =CHAR( L30) -> ¢ | N30: 195 | O30: =CHAR( N30) -> Ã | P30: 228 | Q30: =CHAR( P30) -> ä | R30: Excel Fr : | S30: CAR(i) | T30: :%s/ò/\\`o/ge | U30: o accent grave | V30: ò | W30: \`o | X30: &ograve; | Y30: M-r | Z30: C ` o | AD30: i tréma | AE30: ï | AF30: &iuml; | AG30: ï | AH30: :%s/&iuml;/ï/gie
D31: 31 | F31: 64 | G31: @ | H31: 97 | I31: a | J31: 130 | K31: =CHAR( J31) -> ‚ | L31: 163 | M31: =CHAR( L31) -> £ | N31: 196 | O31: =CHAR( N31) -> Ä | P31: 229 | Q31: =CHAR( P31) -> å | R31: Excel GB : | S31: CHAR(i) | T31: :%s/ô/\\^o/ge | U31: o accent circonflexe | V31: ô | W31: \^o | X31: &ocirc; | Y31: M-t | Z31: C ^ o | AD31: I tréma | AE31: Ï | AF31: &Iuml; | AG31: Ï | AH31: :%s/&Iuml;/Ï/gie
D32: 32 | F32: 65 | G32: A | H32: 98 | I32: b | J32: 131 | K32: =CHAR( J32) -> ƒ | L32: 164 | M32: =CHAR( L32) -> ¤ | N32: 197 | O32: =CHAR( N32) -> Å | P32: 230 | Q32: =CHAR( P32) -> æ | T32: :%s/ö/\\"o/ge | U32: o tréma | V32: ö | W32: \"o | X32: &ouml; | Y32: M-v | Z32: C " o | AD32: o accent grave | AE32: ò | AF32: &ograve; | AG32: ò | AH32: :%s/&ograve;/ò/gie
D33: 33 | E33: ! | F33: 66 | G33: B | H33: 99 | I33: c | J33: 132 | K33: =CHAR( J33) -> „ | L33: 165 | M33: =CHAR( L33) -> ¥ | N33: 198 | O33: =CHAR( N33) -> Æ | P33: 231 | Q33: =CHAR( P33) -> ç | T33: :%s/Ö/\\"O/ge | U33: O tréma | V33: Ö | W33: \"O | X33: &Ouml; | Y33: M-V | Z33: C " O | AD33: O accent grave | AE33: Ò | AF33: &Ograve; | AG33: Ò | AH33: :%s/&Ograve;/Ò/gie
T34: :%s/ß/\\ss/ge | U34: double s allemand | V34: ß | W34: \ss | X34: &szlig; | Y34: M-_ | Z34: C s s | AD34: o accent aigu | AE34: ó | AF34: &oacute; | AG34: ó | AH34: :%s/&oacute;/ó/gie
T35: :%s/ú/\\'u/ge | U35: u accent aigu | V35: ú | W35: \'u | X35: &uacute; | Y35: M-z | Z35: C ' u | AD35: O accent aigu | AE35: Ó | AF35: &Oacute; | AG35: Ó | AH35: :%s/&Oacute;/Ó/gie
T36: :%s/ù/\\`u/ge | U36: u accent grave | V36: ù | W36: \`u | X36: &ugrave; | Y36: M-y | Z36: C ` u | AD36: o accent circonflexe | AE36: ô | AF36: &ocirc; | AG36: ô | AH36: :%s/&ocirc;/ô/gie
T37: :%s/û/\\^u/ge | U37: u accent circonflexe | V37: û | W37: \^u | X37: &ucirc; | Y37: M-{ | Z37: C ^ u | AD37: O accent circonflexe | AE37: Ô | AF37: &Ocirc; | AG37: Ô | AH37: :%s/&Ocirc;/Ô/gie
T38: :%s/ü/\\"u/ge | U38: u tréma | V38: ü | W38: \"u | X38: &uuml; | Y38: M-| | Z38: C " u | AD38: o tilde | AE38: õ | AF38: &otilde; | AG38: õ | AH38: :%s/&otilde;/õ/gie
T39: :%s/Ü/\\"/ge | U39: U tréma | V39: Ü | W39: \" | X39: &Uuml; | Y39: M-\ | Z39: C " U | AD39: O tilde | AE39: Õ | AF39: &Otilde; | AG39: Õ | AH39: :%s/&Otilde;/Õ/gie
AD40: o tréma | AE40: ö | AF40: &ouml; | AG40: ö | AH40: :%s/&ouml;/ö/gie
AD41: O tréma | AE41: Ö | AF41: &Ouml; | AG41: Ö | AH41: :%s/&Ouml;/Ö/gie
AD42: o barré | AE42: ø | AF42: &oslash; | AG42: ø | AH42: :%s/&oslash;/ø/gie
AD43: O barré | AE43: Ø | AF43: &Oslash; | AG43: Ø | AH43: :%s/&Oslash;/Ø/gie
AD44: u accent grave | AE44: ù | AF44: &ugrave; | AG44: ù | AH44: :%s/&ugrave;/ù/gie
AD45: U accent grave | AE45: Ù | AF45: &Ugrave; | AG45: Ù | AH45: :%s/&Ugrave;/Ù/gie
AD46: u accent aigu | AE46: ú | AF46: &uacute; | AG46: ú | AH46: :%s/&uacute;/ú/gie
AD47: U accent aigu | AE47: Ú | AF47: &Uacute; | AG47: Ú | AH47: :%s/&Uacute;/Ú/gie
AD48: u accent circonflexe | AE48: û | AF48: &ucirc; | AG48: û | AH48: :%s/&ucirc;/û/gie
AD49: U accent circonflexe | AE49: Û | AF49: &Ucirc; | AG49: Û | AH49: :%s/&Ucirc;/Û/gie
AD50: u tréma | AE50: ü | AF50: &uuml; | AG50: ü | AH50: :%s/&uuml;/ü/gie
AD51: U tréma | AE51: Ü | AF51: &Uuml; | AG51: Ü | AH51: :%s/&Uuml;/Ü/gie
AD52: n tilde | AE52: ñ | AF52: &ntilde; | AG52: ñ | AH52: :%s/&ntilde;/ñ/gie
AD53: N tilde | AE53: Ñ | AF53: &Ntilde; | AG53: Ñ | AH53: :%s/&Ntilde;/Ñ/gie
AD54: c cédille | AE54: ç | AF54: &ccedil; | AG54: ç | AH54: :%s/&ccedil;/ç/gie
AD55: C cédille | AE55: Ç | AF55: &Ccedil; | AG55: Ç | AH55: :%s/&Ccedil;/Ç/gie
AD56: y accent aigu | AE56: ý | AF56: &yacute; | AG56: ý | AH56: :%s/&yacute;/ý/gie
AD57: Y accent aigu | AE57: Ý | AF57: &Yacute; | AG57: Ý | AH57: :%s/&Yacute;/Ý/gie
AD58: double s allemand | AE58: ß | AF58: &szlig; | AG58: ß | AH58: :%s/&szlig;/ß/gie
AD59: guillemet français ouvrant | AE59: « | AF59: &laquo; | AG59: « | AH59: :%s/&laquo;/«/gie
AD60: guillemet français fermant | AE60: » | AF60: &raquo; | AG60: » | AH60: :%s/&raquo;/»/gie
AD61: esperluette | AE61: & | AF61: &amp; | AG61: & | AH61: :%s/&amp;/&/gie
AD62: inférieur | AE62: < | AF62: &lt; | AG62: < | AH62: :%s/&lt;/</gie
AD63: supérieur | AE63: < | AF63: &gt; | AG63: < | AH63: :%s/&gt;/</gie
AD64: guillemet double | AE64: " | AF64: &quot; | AG64: " | AH64: :%s/&quot;/"/gie
AD65: paragraphe | AE65: § | AF65: &para; | AG65: § | AH65: :%s/&para;/§/gie
AD66: copyright | AE66: © | AF66: &copy; | AG66: © | AH66: :%s/&copy;/©/gie
AD67: espace blanc | AF67: &nbsp; | AH67: =CONCATENATE(":%s/",AF67,"/ /gie") -> :%s/&nbsp;/ /gie

Sheet xwork
F2: FOUR 3 | G2: KIC | H2: 1 | I2: 0.7 | J2: MPa rac (m)
G3: Profond | H3: 10 | I3: 20 | J3: µm
H4: =H2/(SQRT(PI()*H3*0.000001)) -> 178.4124116 | I4: =I2/(SQRT(PI()*I3*0.000001)) -> 88.30963827 | J4: MPa
P5: OK
F6: Pour l'exercice du four, question3: je fais sigma= K1c / racine( pi * a) = 178 MPa (comme en TD) et vous, vous trouvez 214 MPa
F8: Béton | G8: Contrainte | H8: 66 | I8: 12 | J8: MPa
G9: Profond | H9: 1.3 | I9: 2 | J9: mm
H10: =H8*SQRT(PI()*H9/2/1000) -> 2.982466335 | I10: =I8*SQRT(PI()*I9/2/1000) -> 0.672598946 | J10: MPa rac (m)
P11: OK
F12: Moi je trouve 2.98 pour une fissure de 1,3mm et une contrainte de 66MPa, mais je ne voie pas ou peut être mon erreur
F13: =Res_Meca*RACINE(PI()*Long_Fiss/2/1000) = 2.98 MPa m1/2
F15: Traction | G15: F | H15: 39 | I15: 34 | J15: N
G16: d | H16: 3.5 | I16: 7 | J16: mm
H17: =H15*1000/(PI()*H16^2/4) -> 4053.578959 | I17: =I15*1000/(PI()*I16^2/4) -> 883.4723372 | P17: OK
F18: Aussi, pour l'exercice de traction, pour la question a, je fais sigma= F/ S où F=39000N et S= (pi*3.5^2)/4 => sigma= 4054 MPa
F19: Mais vous trouvez 497MPa
F24: Enfin, pour le critère énergétique de Griffith, a correspond à la demi longueur mais je ne comprends pas ce que c'est. Par exemple, pour l'exercice 8, c'est 38µm /2?
F28: Contrainte | G28: Ordre | H28: ln sig exp | I28: LN(-LN(1- Ordre /10))
E29: 273 | F29: 161 | G29: 1 | H29: =LN(E29) -> 5.609471795 | I29: =LN(-LN(1-G29/10)) -> -2.250367327
E30: 273 | F30: 196 | G30: 2 | H30: =LN(E30) -> 5.609471795 | I30: =LN(-LN(1-G30/10)) -> -1.499939987 | K30: =LINEST(I29:I37,E29:E37,1,1) -> 0.02602994841 | L30: -8.941207144
E31: 302 | F31: 206 | G31: 3 | H31: 5.710427017 | I31: -1.030930433 | K31: 0.002143338861 | L31: 0.6998715244
E32: 311 | F32: 235 | G32: 4 | H32: 5.739792912 | I32: -0.6717269921
E33: 334 | F33: 262 | G33: 5 | H33: 5.811140993 | I33: -0.3665129206 | K33: =EXP(-L30/K30) -> 1.50944576e+149
E34: 344 | F34: 276 | G34: 6 | H34: 5.840641657 | I34: -0.08742157179
E35: 351 | F35: 296 | G35: 7 | H35: 5.860786223 | I35: 0.1856267589
E36: 358 | F36: 321 | G36: 8 | H36: 5.880532986 | I36: 0.4758849953
E37: 376 | F37: 347 | G37: 9 | H37: 5.929589143 | I37: 0.8340324452

Sheet La-Chaine
A1: catégorie_Cha | B1: La-Chaine | C1: =CONCATENATE(" <!-- question XLQ ", titre_Cha, "-->") -> <!-- question XLQ La-Chaine_Cha--> | F1: Valeur Mini_Cha | G1: Valeur Maxi_Cha | H1: Sig. Digit_Cha | I1: Val Choix_Cha
B2: La-Chaine_Cha | C2: =CONCATENATE(" <question type=",CHAR(34),"category",CHAR(34),"><category><text>", categorie_Cha,"</text></category></question>)") -> <question type="category"><category><text>La-Chaine</text></category></question>) | E2: V1.LongA_Cha | F2: 1 | G2: 10 | H2: 0 | I2: =RANDBETWEEN(ValMini_Cha*10^-SigDig_Cha, ValMaxi_Cha*10^-SigDig_Cha)/10^-SigDig_Cha+ROUND(RAND()/3,1) -> 7.3
A3: Tag_Cha | B3: La-Chaine_Cha | C3: <question type="cloze"> | E3: V2.ProbaA_Cha | F3: 0.1 | G3: 0.9 | H3: -1 | I3: =RANDBETWEEN(ValMini_Cha*10^-SigDig_Cha, ValMaxi_Cha*10^-SigDig_Cha)/10^-SigDig_Cha -> 0.4 | CA3: <p>Une chaine de longueur #1#m &agrave; une probabilit&eacute; de rupture de #2#. En d&eacute;duire la probabilit&eacute; de rupture de cette une m&ecirc;me chaine avec une longueur de #3#m. R&eacute;ponse : $1$</p><p><p>&nbsp;</p><p>
A4: idnumber_Cha | B4: =TEXT(NOW(),"aammjj-hhmmss.00") -> 210710-210925.17 | C4: =CONCATENATE(" <name><text>", titre_Cha, "</text></name>") -> <name><text>La-Chaine_Cha</text></name> | E4: V3.LongB_Cha | F4: 2 | G4: 10 | H4: 0 | I4: =RANDBETWEEN(ValMini_Cha*10^-SigDig_Cha, ValMaxi_Cha*10^-SigDig_Cha)/10^-SigDig_Cha-ROUND(RAND()/3,1)-0.1 -> 3.9
A5: points_Cha | B5: 1 | C5: <questiontext format="html">
A6: tolérance_Cha | B6: 0.05 | C6: =CONCATENATE(" <text><![CDATA[<p>", question_Cha, "</p>]]></text>") -> <text><![CDATA[<p> Une chaine de longueur 7.3m &agrave; une probabilit&eacute; de rupture de 0.4. En d&eacute;duire la probabilit&eacute; de rupture de cette une m&ecirc;me chaine avec une longueur de 3.9m. R&eacute;ponse: {1:NUMERICAL:=2.39E-01:1.19E-02}</p><p><p>&nbsp;</p><p></p>]]></text> | F6: Cible_Cha | G6: Toler_Cha | H6: PointsQuestion_Cha
A7: penalité_Cha | B7: 0.1 | C7: </questiontext> | E7: R1.ProbaB_Cha | F7: =1-(1-V2.ProbaA_Cha)^(V3.LongB_Cha/V1.LongA_Cha) -> 0.2388363057 | G7: =tolerance_Cha*ValMini_Cha -> 0.01194181529 | H7: 1 | I7: =CONCATENATE("{",PointsQuestion_Cha,":NUMERICAL:=",TEXT(Cible_Cha,"0.00E+00"),":",TEXT(ABS(Tolere_Cha),"0.00E+00"),"}") -> {1:NUMERICAL:=2.39E-01:1.19E-02}
A8: feedback_Cha | B8: _ | C8: =CONCATENATE(" <defaultgrade>",points_Cha,"</defaultgrade><generalfeedback><text>",feedback_Cha,"</text></generalfeedback><penalty>",penalty_Cha,"</penalty><hidden>0</hidden>)") -> <defaultgrade>1</defaultgrade><generalfeedback><text>_</text></generalfeedback><penalty>0.1</penalty><hidden>0</hidden>) | I8: =SUM(F7:H7) -> 1.250778121
A9: Cellule vides_Cha | B9: =COUNTBLANK(B1:B8) -> 0 | C9: =CONCATENATE(" <idnumber>",idnumber_Cha,"</idnumber><tags><tag><text>",Tag_Cha,"</text></tag></tags>") -> <idnumber>210710-210925.17</idnumber><tags><tag><text>La-Chaine_Cha</text></tag></tags>
A10: question format HTML_Cha | B10: =CONCATENATE(" ",B19,B20,B21) -> Une chaine de longueur 7.3m &agrave; une probabilit&eacute; de rupture de 0.4. En d&eacute;duire la probabilit&eacute; de rupture de cette une m&ecirc;me chaine avec une longueur de 3.9m. R&eacute;ponse: {1:NUMERICAL:=2.39E-01:1.19E-02}</p><p><p>&nbsp;</p><p> | C10: </question>
A11: Repere Var Rep | B11: _Cha
A12: HTML File | B12: =CONCATENATE(categorie_Cha,"_HTML.txt") -> La-Chaine_HTML.txt
A13: Valide ? | B13: =AND(ISNUMBER(I8),V1.LongA_Cha<>V3.LongB_Cha) -> TRUE
A14: https://html-online.com/editor/
C15: 5
A16: Var : | B16: # | C16: 3
A17: Res : | B17: $ | C17: 1
B19: =CONCATENATE("Une chaine de longueur ",V1.LongA_Cha,"m &agrave; une probabilit&eacute; de rupture de ",V2.ProbaA_Cha,". En d&eacute;duire la probabilit&eacute; de rupture de cette une m&ecirc;me chaine avec une longueur de ",V3.LongB_Cha,"m. R&eacute;ponse") -> Une chaine de longueur 7.3m &agrave; une probabilit&eacute; de rupture de 0.4. En d&eacute;duire la probabilit&eacute; de rupture de cette une m&ecirc;me chaine avec une longueur de 3.9m. R&eacute;ponse | C19: <p>Une chaine de longueur #1#m &agrave; une probabilit&eacute; de rupture de #2#. En d&eacute;duire la probabilit&eacute; de rupture de cette une m&ecirc;me chaine avec une longueur de #3#m. R&eacute;ponse : $1$</p>
B20: =CONCATENATE(": ",R1.ProbaB_Cha,"</p><p><p>&nbsp;</p><p>") -> : {1:NUMERICAL:=2.39E-01:1.19E-02}</p><p><p>&nbsp;</p><p> | C20: <p>&nbsp;</p>
B21: =CONCATENATE("") -> 
M23: =CONCATENATE("Une chaine de longueur ",V1.LongA_Cha,"m à une probabilité de rupture de ",V2.ProbaA_Cha,". En déduire la probabilité de rupture de cette une même chaine avec une longueur de ",V3.LongB_Cha,"m. Réponse") -> Une chaine de longueur 7.3m à une probabilité de rupture de 0.4. En déduire la probabilité de rupture de cette une même chaine avec une longueur de 3.9m. Réponse
M24: =CONCATENATE(" \formsol{$1-(1-p_A)^{(L_B/L_A)}$} \minisol{",ROUND(F7,3),"}") -> \formsol{$1-(1-p_A)^{(L_B/L_A)}$} \minisol{0.239}
C41: : ",R1.ProbaB_Cha,"</p><p><p>&nbsp;</p><p>

Sheet Independants
A1: catégorie_Ind | B1: Independants | C1: =CONCATENATE(" <!-- question XLQ ", titre_Ind, "-->") -> <!-- question XLQ Independants_Ind--> | F1: Valeur Mini_Ind | G1: Valeur Maxi_Ind | H1: Sig. Digit_Ind | I1: Val Choix_Ind
B2: Independants_Ind | C2: =CONCATENATE(" <question type=",CHAR(34),"category",CHAR(34),"><category><text>", categorie_Ind,"</text></category></question>)") -> <question type="category"><category><text>Independants</text></category></question>) | E2: V1.ProbA_Ind | F2: 0.1 | G2: 0.9 | H2: -1 | I2: =RANDBETWEEN(ValMini_Ind*10^-SigDig_Ind, ValMaxi_Ind*10^-SigDig_Ind)/10^-SigDig_Ind -> 0.7
A3: Tag_Ind | B3: Independants_Ind | C3: <question type="cloze"> | E3: V2.ProbaB_Ind | F3: 0.1 | G3: 0.9 | H3: -1 | I3: =RANDBETWEEN(ValMini_Ind*10^-SigDig_Ind, ValMaxi_Ind*10^-SigDig_Ind)/10^-SigDig_Ind -> 0.7 | CA3: <p>On r&eacute;alise un s&eacute;rie de tests probabilistes avec des &eacute;v&eacute;nements r&eacute;put&eacute;s ind&eacute;pendants, A, B, C et D avec des probablit&eacute; de r&eacute;alisation P(A)=#1#, P(B)=#2#, P(C)=#3# et P(D)=#4#. Calculez la probabilit&eacute; que A et B se r&eacute;alisent tous les deux : P(A,B)=$1$, de m&ecirc;me pour P(B,C,D)=$2$.</p><p><p>&nbsp;</p><p>
A4: idnumber_Ind | B4: =TEXT(NOW(),"aammjj-hhmmss.00") -> 210710-210925.17 | C4: =CONCATENATE(" <name><text>", titre_Ind, "</text></name>") -> <name><text>Independants_Ind</text></name> | E4: V3.ProbaC_Ind | F4: 0.1 | G4: 0.9 | H4: -1 | I4: =RANDBETWEEN(ValMini_Ind*10^-SigDig_Ind, ValMaxi_Ind*10^-SigDig_Ind)/10^-SigDig_Ind -> 0.7
A5: points_Ind | B5: 1 | C5: <questiontext format="html"> | E5: V4.ProbaD_Ind | F5: 0.1 | G5: 0.9 | H5: -1 | I5: =RANDBETWEEN(ValMini_Ind*10^-SigDig_Ind, ValMaxi_Ind*10^-SigDig_Ind)/10^-SigDig_Ind -> 0.2
A6: tolérance_Ind | B6: 0.1 | C6: =CONCATENATE(" <text><![CDATA[<p>", question_Ind, "</p>]]></text>") -> <text><![CDATA[<p> On r&eacute;alise un s&eacute;rie de tests probabilistes avec des &eacute;v&eacute;nements r&eacute;put&eacute;s ind&eacute;pendants, A, B, C et D avec des probablit&eacute; de r&eacute;alisation P(A)=0.7, P(B)=0.7, P(C)=0.7 et P(D)=0.2. Calculez la probabilit&eacute; que A et B se r&eacute;alisent tous les deux : P(A,B)={1:NUMERICAL:=4.90E-01:4.90E-02}, de m&ecirc;me pour P(B,C,D)={1:NUMERICAL:=9.80E-02:9.80E-03}.</p><p><p>&nbsp;</p><p></p>]]></text>
A7: penalité_Ind | B7: 0.1 | C7: </questiontext> | F7: Cible_Ind | G7: Toler_Ind | H7: PointsQuestion_Ind
A8: feedback_Ind | B8: _ | C8: =CONCATENATE(" <defaultgrade>",points_Ind,"</defaultgrade><generalfeedback><text>",feedback_Ind,"</text></generalfeedback><penalty>",penalty_Ind,"</penalty><hidden>0</hidden>)") -> <defaultgrade>1</defaultgrade><generalfeedback><text>_</text></generalfeedback><penalty>0.1</penalty><hidden>0</hidden>) | E8: R1.ProbaAB_Ind | F8: =V1.ProbA_Ind*V2.ProbaB_Ind -> 0.49 | G8: =tolerance_Ind*ValMini_Ind -> 0.049 | H8: 1 | I8: =CONCATENATE("{",PointsQuestion_Ind,":NUMERICAL:=",TEXT(Cible_Ind,"0.00E+00"),":",TEXT(ABS(Tolere_Ind),"0.00E+00"),"}") -> {1:NUMERICAL:=4.90E-01:4.90E-02}
A9: Cellule vides_Ind | B9: =COUNTBLANK(B1:B8) -> 0 | C9: =CONCATENATE(" <idnumber>",idnumber_Ind,"</idnumber><tags><tag><text>",Tag_Ind,"</text></tag></tags>") -> <idnumber>210710-210925.17</idnumber><tags><tag><text>Independants_Ind</text></tag></tags> | E9: R2.ProbaBCD_Ind | F9: =V2.ProbaB_Ind*V3.ProbaC_Ind*V4.ProbaD_Ind -> 0.098 | G9: =tolerance_Ind*ValMini_Ind -> 0.0098 | H9: 1 | I9: =CONCATENATE("{",PointsQuestion_Ind,":NUMERICAL:=",TEXT(Cible_Ind,"0.00E+00"),":",TEXT(ABS(Tolere_Ind),"0.00E+00"),"}") -> {1:NUMERICAL:=9.80E-02:9.80E-03}
A10: question format HTML_Ind | B10: =CONCATENATE(" ",B19,B20,B21,B22) -> On r&eacute;alise un s&eacute;rie de tests probabilistes avec des &eacute;v&eacute;nements r&eacute;put&eacute;s ind&eacute;pendants, A, B, C et D avec des probablit&eacute; de r&eacute;alisation P(A)=0.7, P(B)=0.7, P(C)=0.7 et P(D)=0.2. Calculez la probabilit&eacute; que A et B se r&eacute;alisent tous les deux : P(A,B)={1:NUMERICAL:=4.90E-01:4.90E-02}, de m&ecirc;me pour P(B,C,D)={1:NUMERICAL:=9.80E-02:9.80E-03}.</p><p><p>&nbsp;</p><p> | C10: </question>
A11: Repere Var Rep | B11: _Ind | H11: =SUM(F8:H9) -> 2.6468
A12: HTML File | B12: =CONCATENATE(categorie_Ind,"_HTML.txt") -> Independants_HTML.txt
A13: Valide ? | B13: =ISNUMBER(H11) -> TRUE
A14: https://html-online.com/editor/
C15: 6
A16: Var : | B16: # | C16: 4
A17: Res : | B17: $ | C17: 2
B19: =CONCATENATE("On r&eacute;alise un s&eacute;rie de tests probabilistes avec des &eacute;v&eacute;nements r&eacute;put&eacute;s ind&eacute;pendants, A, B, C et D avec des probablit&eacute; de r&eacute;alisation P(A)=",V1.ProbA_Ind,",") -> On r&eacute;alise un s&eacute;rie de tests probabilistes avec des &eacute;v&eacute;nements r&eacute;put&eacute;s ind&eacute;pendants, A, B, C et D avec des probablit&eacute; de r&eacute;alisation P(A)=0.7, | C19: <p>On r&eacute;alise un s&eacute;rie de tests probabilistes avec des &eacute;v&eacute;nements r&eacute;put&eacute;s ind&eacute;pendants, A, B, C et D avec des probablit&eacute; de r&eacute;alisation P(A)=#1#, P(B)=#2#, P(C)=#3# et P(D)=#4#. Calculez la probabilit&eacute; que A et B se r&eacute;alisent tous les deux : P(A,B)=$1$, de m&ecirc;me pour P(B,C,D)=$2$.</p>
B20: =CONCATENATE(" P(B)=",V2.ProbaB_Ind,", P(C)=",V3.ProbaC_Ind," et P(D)=",V4.ProbaD_Ind,". Calculez la probabilit&eacute; que A et B se r&eacute;alisent tous les deux : P(A,B)=",R1.ProbaAB_Ind,", de m&ecirc;me pour P(B,C,D)=",R2.ProbaBCD_Ind,".</p><p><p>&nbsp;</p><p>") -> P(B)=0.7, P(C)=0.7 et P(D)=0.2. Calculez la probabilit&eacute; que A et B se r&eacute;alisent tous les deux : P(A,B)={1:NUMERICAL:=4.90E-01:4.90E-02}, de m&ecirc;me pour P(B,C,D)={1:NUMERICAL:=9.80E-02:9.80E-03}.</p><p><p>&nbsp;</p><p> | C20: <p>&nbsp;</p>
B21: =CONCATENATE("") -> 
B22: =CONCATENATE("") ->  | L22: =CONCATENATE("On réalise un série de tests probabilistes avec des événements réputés indépendants, A, B, C et D avec des probablité de réalisation P(A)=",V1.ProbA_Ind,",") -> On réalise un série de tests probabilistes avec des événements réputés indépendants, A, B, C et D avec des probablité de réalisation P(A)=0.7,
L23: =CONCATENATE("P(B)=",V2.ProbaB_Ind,", P(C)=",V3.ProbaC_Ind," et P(D)=",V4.ProbaD_Ind,". Calculez la probabilité que A et B se réalisent tous les deux : P(A,B)= \formsol{pa x pb} \minisol{",ROUND(F8,3),"}, de même pour P(B,C,D)\formsol{pb x pc x pd} \minisol{",ROUND(F9,3),"}.") -> P(B)=0.7, P(C)=0.7 et P(D)=0.2. Calculez la probabilité que A et B se réalisent tous les deux : P(A,B)= \formsol{pa x pb} \minisol{0.49}, de même pour P(B,C,D)\formsol{pb x pc x pd} \minisol{0.098}.

Sheet Alumine
A1: catégorie_AlO | B1: Alumine | C1: =CONCATENATE(" <!-- question XLQ ", titre_AlO, "-->") -> <!-- question XLQ Alumine_AlO--> | F1: Valeur Mini_AlO | G1: Valeur Maxi_AlO | H1: Sig. Digit_AlO | I1: Val Choix_AlO
B2: Alumine_AlO | C2: =CONCATENATE(" <question type=",CHAR(34),"category",CHAR(34),"><category><text>", categorie_AlO,"</text></category></question>)") -> <question type="category"><category><text>Alumine</text></category></question>) | E2: V1.KIC_AlO | F2: 0.5 | G2: 4 | H2: -1 | I2: =RANDBETWEEN(ValMini_AlO*10^-SigDig_AlO, ValMaxi_AlO*10^-SigDig_AlO)/10^-SigDig_AlO -> 2.4 | J2: MPa m1/2 | L2: 3
A3: Tag_AlO | B3: Alumine_AlO | C3: <question type="cloze"> | E3: V2.Profond_AlO | F3: 10 | G3: 100 | H3: 1 | I3: =RANDBETWEEN(ValMini_AlO*10^-SigDig_AlO, ValMaxi_AlO*10^-SigDig_AlO)/10^-SigDig_AlO -> 70 | J3: µm | L3: 30 | CA3: <p>Al2O3 &agrave; une t&eacute;nacit&eacute; de KIC proche de #1# 3MPa. m1/2. Un ensemble d'&eacute;chantillon pr&eacute;sente des fissures de surface de #2# 30 &micro;m estimez<br />la contrainte &agrave; rupture en traction Rm=$1$ MPa.</p><p>Al2O3 à une ténacité de KIC proche de #i# 3MPa. m1/2. Un ensemble d'échantillon présente des fissures de surface de #i# 30 µm estimez<p>la contrainte à rupture en traction Rm=$1$ MPa.<p>Al2O3 à une ténacité de KIC proche de #i# 3MPa. m1/2. Un ensemble d'échantillon présente des fissures de surface de #i# 30 µm estimez<p>la contrainte à rupture en traction Rm="",R1.ResMeca_AlO,"" MPa.<p><p>
A4: idnumber_AlO | B4: =TEXT(NOW(),"aammjj-hhmmss.00") -> 210710-210925.17 | C4: =CONCATENATE(" <name><text>", titre_AlO, "</text></name>") -> <name><text>Alumine_AlO</text></name> | I4: =RANDBETWEEN(ValMini_AlO*10^-SigDig_AlO, ValMaxi_AlO*10^-SigDig_AlO)/10^-SigDig_AlO -> 0
A5: points_AlO | B5: 1 | C5: <questiontext format="html"> | F5: Cible_AlO | G5: Toler_AlO | H5: PointsQuestion_AlO
A6: tolérance_AlO | B6: 0.3 | C6: =CONCATENATE(" <text><![CDATA[<p>", question_AlO, "</p>]]></text>") -> <text><![CDATA[<p> Si la t&eacute;nacit&eacute; Al2O3 (KIC) est proche de 2.4 MPa.m1/2, et qu'un &eacute;chantillon pr&eacute;sente un ensemble des fissures de surface de 70 &micro;m estimez la contrainte &agrave; rupture en traction Rm={2:NUMERICAL:=1.62E+02:4.86E+01} MPa.</p></p>]]></text> | E6: R1.ResMeca_AlO | F6: =V1.KIC_AlO/SQRT(PI()*V2.Profond_AlO*0.000001) -> 161.8405275 | G6: =tolerance_AlO*ValMini_AlO -> 48.55215826 | H6: 2 | I6: =CONCATENATE("{",PointsQuestion_AlO,":NUMERICAL:=",TEXT(Cible_AlO,"0.00E+00"),":",TEXT(ABS(Tolere_AlO),"0.00E+00"),"}") -> {2:NUMERICAL:=1.62E+02:4.86E+01} | L6: =L2/SQRT(PI()*L3*0.000001) -> 309.0193616
A7: penalité_AlO | B7: 0.1 | C7: </questiontext> | F7: =SUM(F6:H6) -> 212.3926858
A8: feedback_AlO | B8: _ | C8: =CONCATENATE(" <defaultgrade>",points_AlO,"</defaultgrade><generalfeedback><text>",feedback_AlO,"</text></generalfeedback><penalty>",penalty_AlO,"</penalty><hidden>0</hidden>)") -> <defaultgrade>1</defaultgrade><generalfeedback><text>_</text></generalfeedback><penalty>0.1</penalty><hidden>0</hidden>)
A9: Cellule vides_AlO | B9: =COUNTBLANK(B1:B8) -> 0 | C9: =CONCATENATE(" <idnumber>",idnumber_AlO,"</idnumber><tags><tag><text>",Tag_AlO,"</text></tag></tags>") -> <idnumber>210710-210925.17</idnumber><tags><tag><text>Alumine_AlO</text></tag></tags>
A10: question format HTML_AlO | B10: =CONCATENATE(" ",B19,B20,B21,B22,B23,B24,B25) -> Si la t&eacute;nacit&eacute; Al2O3 (KIC) est proche de 2.4 MPa.m1/2, et qu'un &eacute;chantillon pr&eacute;sente un ensemble des fissures de surface de 70 &micro;m estimez la contrainte &agrave; rupture en traction Rm={2:NUMERICAL:=1.62E+02:4.86E+01} MPa.</p> | C10: </question>
A11: Repere Var Rep | B11: _AlO
A12: HTML File | B12: =CONCATENATE(categorie_AlO,"_HTML.txt") -> Alumine_HTML.txt
A13: Valide ? | B13: =ISNUMBER(F7) -> TRUE
A14: https://html-online.com/editor/
C15: 4
A16: Var : | B16: # | C16: 2
A17: Res : | B17: $ | C17: 1
B19: =CONCATENATE("Si la t&eacute;nacit&eacute; Al2O3 (KIC) est proche de ",V1.KIC_AlO," MPa.m1/2, et qu'un &eacute;chantillon pr&eacute;sente un ensemble des fissures de surface de ",V2.Profond_AlO," &micro;m estimez la contrainte &agrave;") -> Si la t&eacute;nacit&eacute; Al2O3 (KIC) est proche de 2.4 MPa.m1/2, et qu'un &eacute;chantillon pr&eacute;sente un ensemble des fissures de surface de 70 &micro;m estimez la contrainte &agrave; | C19: <p>Al2O3 &agrave; une t&eacute;nacit&eacute; de KIC proche de #1# 3MPa. m1/2. Un ensemble d'&eacute;chantillon pr&eacute;sente des fissures de surface de #2# 30 &micro;m estimez<br />la contrainte &agrave; rupture en traction Rm=$1$ MPa.</p>
B20: =CONCATENATE(" rupture en traction Rm=",R1.ResMeca_AlO," MPa.</p>") -> rupture en traction Rm={2:NUMERICAL:=1.62E+02:4.86E+01} MPa.</p> | C20: Al2O3 à une ténacité de KIC proche de #i# 3MPa. m1/2. Un ensemble d'échantillon présente des fissures de surface de #i# 30 µm estimez
C21: la contrainte à rupture en traction Rm=$1$ MPa. | K21: =CONCATENATE("Si la ténacité $Al_2O_3$ (KIC) est proche de ",V1.KIC_AlO," \MpaRac{}, et qu'un échantillon présente un ensemble des fissures de surface de ",V2.Profond_AlO," µm estimez la contrainte à") -> Si la ténacité $Al_2O_3$ (KIC) est proche de 2.4 \MpaRac{}, et qu'un échantillon présente un ensemble des fissures de surface de 70 µm estimez la contrainte à
K22: =CONCATENATE(" rupture en traction Rm= \formsol{$\sigma = K_{IC} / \sqrt{\pi a}$} \minisol{",ROUND(F6,0),"} MPa.") -> rupture en traction Rm= \formsol{$\sigma = K_{IC} / \sqrt{\pi a}$} \minisol{162} MPa.
B23: =CONCATENATE("") -> 
B24: =CONCATENATE("") -> 
B25: =CONCATENATE("") -> 

Sheet Tenac_Beton
A1: catégorie_Btn | B1: Tenac_Beton | C1: =CONCATENATE(" <!-- question XLQ ", titre_Btn, "-->") -> <!-- question XLQ Tenac_Beton_Btn--> | F1: Valeur Mini_Btn | G1: Valeur Maxi_Btn | H1: Sig. Digit_Btn | I1: Val Choix_Btn
B2: Tenac_Beton_Btn | C2: =CONCATENATE(" <question type=",CHAR(34),"category",CHAR(34),"><category><text>", categorie_Btn,"</text></category></question>)") -> <question type="category"><category><text>Tenac_Beton</text></category></question>) | E2: V1.Module_Btn | F2: 60 | G2: 75 | H2: 0 | I2: =RANDBETWEEN(ValMini_Btn*10^-SigDig_Btn, ValMaxi_Btn*10^-SigDig_Btn)/10^-SigDig_Btn -> 71 | J2: Gpa | K2: 50
A3: Tag_Btn | B3: Tenac_Beton_Btn | C3: <question type="cloze"> | E3: V2.Res_Meca_Btn | F3: 10 | G3: 30 | H3: 0 | I3: =RANDBETWEEN(ValMini_Btn*10^-SigDig_Btn, ValMaxi_Btn*10^-SigDig_Btn)/10^-SigDig_Btn -> 15 | J3: Mpa | K3: 6 | CA3: <p>Un b&eacute;ton poss&egrave;de un module E = #1# 50 GPa. En traction, on observe un comportement fragile et une rupture<br />pour une contrainte de #1# 6 MPa. Sachant que la longueur des plus grandes fissures au sein de ce<br />mat&eacute;riau est proche de #3# 7mm, d&eacute;terminer la t&eacute;nacit&eacute; de la matrice ciment&eacute;e. R&eacute;ponse : $1$ MPa. m1/2.</p><p><p>&nbsp;</p><p>
A4: idnumber_Btn | B4: =TEXT(NOW(),"aammjj-hhmmss.00") -> 210710-210925.17 | C4: =CONCATENATE(" <name><text>", titre_Btn, "</text></name>") -> <name><text>Tenac_Beton_Btn</text></name> | E4: V3.Long_Fiss_Btn | F4: 0.5 | G4: 2 | H4: -1 | I4: =RANDBETWEEN(ValMini_Btn*10^-SigDig_Btn, ValMaxi_Btn*10^-SigDig_Btn)/10^-SigDig_Btn -> 1.4 | J4: mm | K4: 7
A5: points_Btn | B5: 1 | C5: <questiontext format="html">
A6: tolérance_Btn | B6: 0.1 | C6: =CONCATENATE(" <text><![CDATA[<p>", question_Btn, "</p>]]></text>") -> <text><![CDATA[<p> Un b&eacute;ton poss&egrave;de un module E = 71 GPa. En traction, on observe un comportement fragile et une rupture<br />pour une contrainte de 15 MPa. Sachant que la longueur des plus grandes fissures au sein de ce<br />mat&eacute;riau est proche de 1.4 mm, d&eacute;terminer la t&eacute;nacit&eacute; de la matrice ciment&eacute;e. R&eacute;ponse : {2:NUMERICAL:=7.03E-01:7.03E-02} MPa. m1/2.</p><p><p>&nbsp;</p>]]></text> | F6: Cible_Btn | G6: Toler_Btn | H6: PointsQuestion_Btn | K6: Attention MPa racine(m)
A7: penalité_Btn | B7: 0.1 | C7: </questiontext> | E7: R1.Tenacite_Btn | F7: =V2.Res_Meca_Btn*SQRT(PI()*V3.Long_Fiss_Btn/2/1000) -> 0.703420815 | G7: =tolerance_Btn*ValMini_Btn -> 0.0703420815 | H7: 2 | I7: =CONCATENATE("{",PointsQuestion_Btn,":NUMERICAL:=",TEXT(Cible_Btn,"0.00E+00"),":",TEXT(ABS(Tolere_Btn),"0.00E+00"),"}") -> {2:NUMERICAL:=7.03E-01:7.03E-02}
A8: feedback_Btn | B8: _ | C8: =CONCATENATE(" <defaultgrade>",points_Btn,"</defaultgrade><generalfeedback><text>",feedback_Btn,"</text></generalfeedback><penalty>",penalty_Btn,"</penalty><hidden>0</hidden>)") -> <defaultgrade>1</defaultgrade><generalfeedback><text>_</text></generalfeedback><penalty>0.1</penalty><hidden>0</hidden>) | H8: =SUM(F7:H7,F2:H4) -> 179.2737629
A9: Cellule vides_Btn | B9: =COUNTBLANK(B1:B8) -> 0 | C9: =CONCATENATE(" <idnumber>",idnumber_Btn,"</idnumber><tags><tag><text>",Tag_Btn,"</text></tag></tags>") -> <idnumber>210710-210925.17</idnumber><tags><tag><text>Tenac_Beton_Btn</text></tag></tags>
A10: question format HTML_Btn | B10: =CONCATENATE(" ",B19,B20,B21,B22) -> Un b&eacute;ton poss&egrave;de un module E = 71 GPa. En traction, on observe un comportement fragile et une rupture<br />pour une contrainte de 15 MPa. Sachant que la longueur des plus grandes fissures au sein de ce<br />mat&eacute;riau est proche de 1.4 mm, d&eacute;terminer la t&eacute;nacit&eacute; de la matrice ciment&eacute;e. R&eacute;ponse : {2:NUMERICAL:=7.03E-01:7.03E-02} MPa. m1/2.</p><p><p>&nbsp; | C10: </question>
A11: Repere Var Rep | B11: _Btn
A12: HTML File | B12: =CONCATENATE(categorie_Btn,"_HTML.txt") -> Tenac_Beton_HTML.txt
A13: Valide ? | B13: =ISNUMBER(H8) -> TRUE
A14: https://html-online.com/editor/
C15: 5
A16: Var : | B16: # | C16: 3
A17: Res : | B17: $ | C17: 1
B19: =CONCATENATE("Un b&eacute;ton poss&egrave;de un module E = ",V1.Module_Btn," GPa. En traction, on observe un comportement fragile et une rupture<br />pour une contrainte de ",V2.Res_Meca_Btn," MPa. Sachant que la longueur des plus grandes") -> Un b&eacute;ton poss&egrave;de un module E = 71 GPa. En traction, on observe un comportement fragile et une rupture<br />pour une contrainte de 15 MPa. Sachant que la longueur des plus grandes | C19: <p>Un b&eacute;ton poss&egrave;de un module E = #1# 50 GPa. En traction, on observe un comportement fragile et une rupture<br />pour une contrainte de #1# 6 MPa. Sachant que la longueur des plus grandes fissures au sein de ce<br />mat&eacute;riau est proche de #3# 7mm, d&eacute;terminer la t&eacute;nacit&eacute; de la matrice ciment&eacute;e. R&eacute;ponse : $1$ MPa. m1/2.</p>
B20: =CONCATENATE(" fissures au sein de ce<br />mat&eacute;riau est proche de ",V3.Long_Fiss_Btn," mm, d&eacute;terminer la t&eacute;nacit&eacute; de la matrice ciment&eacute;e. R&eacute;ponse : ",R1.Tenacite_Btn," MPa. m1/2.</p><p><p>&nbsp;") -> fissures au sein de ce<br />mat&eacute;riau est proche de 1.4 mm, d&eacute;terminer la t&eacute;nacit&eacute; de la matrice ciment&eacute;e. R&eacute;ponse : {2:NUMERICAL:=7.03E-01:7.03E-02} MPa. m1/2.</p><p><p>&nbsp; | C20: <p>&nbsp;</p>
B21: =CONCATENATE("") -> 
B22: =CONCATENATE("") ->  | K22: =CONCATENATE("Un béton possède un module E = ",V1.Module_Btn," GPa. En traction, on observe un comportement fragile et une rupture pour une contrainte de ",V2.Res_Meca_Btn," MPa. Sachant que la longueur des plus grandes fissures au sein de ce matériau est proche de ",V3.Long_Fiss_Btn," mm, déterminer la ténacité de la matrice cimentée. Réponse : \formsol{$ K_{IC} = \sigma \sqrt{\pi a}$} \minisol{",ROUND(F7,1),"} \MpaRac{}.") -> Un béton possède un module E = 71 GPa. En traction, on observe un comportement fragile et une rupture pour une contrainte de 15 MPa. Sachant que la longueur des plus grandes fissures au sein de ce matériau est proche de 1.4 mm, déterminer la ténacité de la matrice cimentée. Réponse : \formsol{$ K_{IC} = \sigma \sqrt{\pi a}$} \minisol{0.7} \MpaRac{}.

Sheet Pizza
A1: catégorie_Piz | B1: Pizza | C1: =CONCATENATE(" <!-- question XLQ ", titre_Piz, "-->") -> <!-- question XLQ Pizza_Piz--> | F1: Valeur Mini_Piz | G1: Valeur Maxi_Piz | H1: Sig. Digit_Piz | I1: Val Choix_Piz
B2: Pizza_Piz | C2: =CONCATENATE(" <question type=",CHAR(34),"category",CHAR(34),"><category><text>", categorie_Piz,"</text></category></question>)") -> <question type="category"><category><text>Pizza</text></category></question>) | E2: V1.Rmt_Piz | F2: 50 | G2: 100 | H2: 0 | I2: =RANDBETWEEN(ValMini_Piz*10^-SigDig_Piz, ValMaxi_Piz*10^-SigDig_Piz)/10^-SigDig_Piz -> 91 | J2: MPa | K2: Rm, TH | L2: =V4.E_Piz/10 -> 7.5 | M2: GPa | N2: 60
A3: Tag_Piz | B3: Pizza_Piz | C3: <question type="cloze"> | E3: V2.Rmc_Piz | F3: 250 | G3: 400 | H3: 1 | I3: 400 | J3: MPa | K3: Kt | L3: =L2*1000/V1.Rmt_Piz -> 82.41758242 | N3: 300 | CA3: <p>Un four &agrave; gaz est muni d'une fen&ecirc;tre afin de permettre un contr&ocirc;le visuel de l'&eacute;tats de cuisson. Cette fen&ecirc;tre pr&eacute;sente un &eacute;l&eacute;ment fragile sous la forme d'un disque &eacute;pais de verre, dont le montage le laisse libre de se dilater radialement. Lors des mises en marche du four, la face interne du disque (celle &agrave; l'int&eacute;rieur du four) subit une brusque &eacute;l&eacute;vation de temp&eacute;rature, alors que la face externe reste &agrave; la temp&eacute;rature ambiante de 20&deg;C. Le verre utilis&eacute; a les propri&eacute;t&eacute;s m&eacute;caniques et physiques suivantes :</p><ul><li>Rmt =#1# MPa (traction)</li><li>Rmc = #2# MPa (compression)</li><li>nu = #3#</li><li>E = #4# GPa</li><li>alpha = #5#</li><li>KIC = #6# MPa.m1/2</li></ul><p>1. Quel est le facteur de concentration de contrainte associ&eacute; au d&eacute;faut le plus s&eacute;v&egrave;re dans le mat&eacute;riau ? $1$ [SD]</p><p>2. Quelle temp&eacute;rature maximale peut atteindre le disque sans risquer de se rompre au cours d'un choc thermique infiniment s&eacute;v&egrave;re ? $2$ &deg;C</p><p>Les faces du disque sont ray&eacute;es au cours de son utilisation, par des fissures aigu&euml;s. La profondeur de ces fissures est de #7# &micro;m.</p><p>3. Quelle est alors la r&eacute;sistance &agrave; la traction du verre ray&eacute; ? $3$ MPa</p><p>4. Quelle temp&eacute;rature maximale peut atteindre ce disque ray&eacute; au cours d'un choc thermique infiniment s&eacute;v&egrave;re ? $4$ C</p>
A4: idnumber_Piz | B4: =TEXT(NOW(),"aammjj-hhmmss.00") -> 210710-210925.17 | C4: =CONCATENATE(" <name><text>", titre_Piz, "</text></name>") -> <name><text>Pizza_Piz</text></name> | E4: V3.nu_Piz | F4: 0.15 | G4: 0.5 | H4: -2 | I4: 0.5 | K4: @RT | L4: 20 | M4: °C | N4: 0.27 | Q4: Kt = | R4: =(V4.E_Piz*1000)/(10*V1.Rmt_Piz) -> 82.41758242
A5: points_Piz | B5: 1 | C5: <questiontext format="html"> | E5: V4.E_Piz | F5: 65 | G5: 75 | H5: 0 | I5: 75 | J5: GPa | N5: 70
A6: tolérance_Piz | B6: 0.1 | C6: =CONCATENATE(" <text><![CDATA[<p>", question_Piz, "</p>]]></text>") -> <text><![CDATA[<p> Un four &agrave; gaz est muni d'une fen&ecirc;tre afin de permettre un contr&ocirc;le visuel de l'&eacute;tats de cuisson. Cette fen&ecirc;tre pr&eacute;sente un &eacute;l&eacute;ment fragile sous la forme d'un disque &eacute;pais de verre, dont le montage le laisse libre de se dilater radialement. Lors des mises en marche du four, la face interne du disque (celle &agrave; l'int&eacute;rieur du four) subit une brusque &eacute;l&eacute;vation de temp&eacute;rature, alors que la face externe reste &agrave; la temp&eacute;rature ambiante de 20&deg;C. Le verre utilis&eacute; a les propri&eacute;t&eacute;s m&eacute;caniques et physiques suivantes :</p><ul><li>Rmt =91 MPa (traction)</li><li>Rmc = 400 MPa (compression)</li><li>nu = 0.5</li><li>E = 75 GPa</li><li>alpha = 6&micro;m / m / K</li><li>KIC = 0.4 MPa.m1/2</li></ul><p>1. Quel est le facteur de concentration de contrainte associ&eacute; au d&eacute;faut le plus s&eacute;v&egrave;re dans le mat&eacute;riau ? {1:NUMERICAL:=8.24E+01:8.24E+00} [SD]</p><p>2. Quelle temp&eacute;rature maximale peut atteindre le disque sans risquer de se rompre au cours d'un choc thermique infiniment s&eacute;v&egrave;re ? {2:NUMERICAL:=2.22E+02:2.22E+01} &deg;C</p><p>Les faces du disque sont ray&eacute;es au cours de son utilisation, par des fissures aigu&euml;s. La profondeur de ces fissures est de 40 &micro;m.</p><p>3. Quelle est alors la r&eacute;sistance &agrave; la traction du verre ray&eacute; ? {1:NUMERICAL:=3.57E+01:3.57E+00} MPa</p><p>4. Quelle temp&eacute;rature maximale peut atteindre ce disque ray&eacute; au cours d'un choc thermique infiniment s&eacute;v&egrave;re ? {3:NUMERICAL:=9.93E+01:9.93E+00} &deg;C</p>]]></text> | E6: V5.alpha_Piz | F6: 5 | G6: 8 | H6: 0 | I6: 6 | J6: µm/ m / K | N6: 5
A7: penalité_Piz | B7: 0.1 | C7: </questiontext> | E7: V6.KIC_Piz | F7: 0.3 | G7: 1.5 | H7: -1 | I7: 0.4 | J7: Mpa m1/2 | N7: 0.8
A8: feedback_Piz | B8: _ | C8: =CONCATENATE(" <defaultgrade>",points_Piz,"</defaultgrade><generalfeedback><text>",feedback_Piz,"</text></generalfeedback><penalty>",penalty_Piz,"</penalty><hidden>0</hidden>)") -> <defaultgrade>1</defaultgrade><generalfeedback><text>_</text></generalfeedback><penalty>0.1</penalty><hidden>0</hidden>) | E8: V7.profond_Piz | F8: 10 | G8: 50 | H8: 1 | I8: 40 | J8: µm | N8: 80
A9: Cellule vides_Piz | B9: =COUNTBLANK(B1:B8) -> 0 | C9: =CONCATENATE(" <idnumber>",idnumber_Piz,"</idnumber><tags><tag><text>",Tag_Piz,"</text></tag></tags>") -> <idnumber>210710-210925.17</idnumber><tags><tag><text>Pizza_Piz</text></tag></tags> | I9: 0
A10: question format HTML_Piz | B10: =CONCATENATE(" ",B19,B20,B21,B22,B23,B24,B25,B26,B27,B28,B29,B30,B31,B32,B33,B34) -> Un four &agrave; gaz est muni d'une fen&ecirc;tre afin de permettre un contr&ocirc;le visuel de l'&eacute;tats de cuisson. Cette fen&ecirc;tre pr&eacute;sente un &eacute;l&eacute;ment fragile sous la forme d'un disque &eacute;pais de verre, dont le montage le laisse libre de se dilater radialement. Lors des mises en marche du four, la face interne du disque (celle &agrave; l'int&eacute;rieur du four) subit une brusque &eacute;l&eacute;vation de temp&eacute;rature, alors que la face externe reste &agrave; la temp&eacute;rature ambiante de 20&deg;C. Le verre utilis&eacute; a les propri&eacute;t&eacute;s m&eacute;caniques et physiques suivantes :</p><ul><li>Rmt =91 MPa (traction)</li><li>Rmc = 400 MPa (compression)</li><li>nu = 0.5</li><li>E = 75 GPa</li><li>alpha = 6&micro;m / m / K</li><li>KIC = 0.4 MPa.m1/2</li></ul><p>1. Quel est le facteur de concentration de contrainte associ&eacute; au d&eacute;faut le plus s&eacute;v&egrave;re dans le mat&eacute;riau ? {1:NUMERICAL:=8.24E+01:8.24E+00} [SD]</p><p>2. Quelle temp&eacute;rature maximale peut atteindre le disque sans risquer de se rompre au cours d'un choc thermique infiniment s&eacute;v&egrave;re ? {2:NUMERICAL:=2.22E+02:2.22E+01} &deg;C</p><p>Les faces du disque sont ray&eacute;es au cours de son utilisation, par des fissures aigu&euml;s. La profondeur de ces fissures est de 40 &micro;m.</p><p>3. Quelle est alors la r&eacute;sistance &agrave; la traction du verre ray&eacute; ? {1:NUMERICAL:=3.57E+01:3.57E+00} MPa</p><p>4. Quelle temp&eacute;rature maximale peut atteindre ce disque ray&eacute; au cours d'un choc thermique infiniment s&eacute;v&egrave;re ? {3:NUMERICAL:=9.93E+01:9.93E+00} &deg;C | C10: </question> | F10: Cible_Piz | G10: Toler_Piz | H10: PointsQuestion_Piz
A11: Repere Var Rep | B11: _Piz | E11: R1.ConcContr_Piz | F11: =L3 -> 82.41758242 | G11: =tolerance_Piz*ValMini_Piz -> 8.241758242 | H11: 1 | I11: =CONCATENATE("{",PointsQuestion_Piz,":NUMERICAL:=",TEXT(Cible_Piz,"0.00E+00"),":",TEXT(ABS(Tolere_Piz),"0.00E+00"),"}") -> {1:NUMERICAL:=8.24E+01:8.24E+00} | N11: 116.6666667
A12: HTML File | B12: Enonce_Pizza.txt | E12: R2.DeltaT_Non_Ray_Piz | F12: =RoomTemp+V1.Rmt_Piz/(V4.E_Piz*1000*V5.alpha_Piz*0.000001) -> 222.2222222 | G12: =tolerance_Piz*ValMini_Piz -> 22.22222222 | H12: 2 | I12: =CONCATENATE("{",PointsQuestion_Piz,":NUMERICAL:=",TEXT(Cible_Piz,"0.00E+00"),":",TEXT(ABS(Tolere_Piz),"0.00E+00"),"}") -> {2:NUMERICAL:=2.22E+02:2.22E+01} | N12: 191.4285714
A13: Valide ? | B13: =AND(ISNUMBER(F16),G16,H16,G17,H17) -> FALSE | E13: R3.Rm_T_Ray_Piz | F13: =V6.KIC_Piz/(SQRT(PI()*V7.profond_Piz*0.000001)) -> 35.68248232 | G13: =tolerance_Piz*ValMini_Piz -> 3.568248232 | H13: 1 | I13: =CONCATENATE("{",PointsQuestion_Piz,":NUMERICAL:=",TEXT(Cible_Piz,"0.00E+00"),":",TEXT(ABS(Tolere_Piz),"0.00E+00"),"}") -> {1:NUMERICAL:=3.57E+01:3.57E+00} | L13: =RoomTemp+F13/(V4.E_Piz*1000*V5.alpha_Piz*0.000001) -> 99.29440516 | N13: 50.46265044
A14: https://html-online.com/editor/ | E14: R4.DeltaT_Ray_Piz | F14: =MIN(F12,L13) -> 99.29440516 | G14: =tolerance_Piz*ValMini_Piz -> 9.929440516 | H14: 3 | I14: =CONCATENATE("{",PointsQuestion_Piz,":NUMERICAL:=",TEXT(Cible_Piz,"0.00E+00"),":",TEXT(ABS(Tolere_Piz),"0.00E+00"),"}") -> {3:NUMERICAL:=9.93E+01:9.93E+00} | N14: 50.46265044
C15: 9
A16: Var : | B16: # | C16: 7 | F16: =SUM(F11:H14) -> 490.5783613 | G16: =F12<1000 -> TRUE | H16: =F12>150 -> TRUE
A17: Res : | B17: $ | C17: 4 | G17: =L13<1000 -> TRUE | H17: =L13>100 -> FALSE
B19: =CONCATENATE("Un four &agrave; gaz est muni d'une fen&ecirc;tre afin de permettre un contr&ocirc;le visuel de l'&eacute;tats de cuisson. Cette fen&ecirc;tre pr&eacute;sente un &eacute;l&eacute;ment fragile sous la") -> Un four &agrave; gaz est muni d'une fen&ecirc;tre afin de permettre un contr&ocirc;le visuel de l'&eacute;tats de cuisson. Cette fen&ecirc;tre pr&eacute;sente un &eacute;l&eacute;ment fragile sous la | C19: <p>Un four &agrave; gaz est muni d'une fen&ecirc;tre afin de permettre un contr&ocirc;le visuel de l'&eacute;tats de cuisson. Cette fen&ecirc;tre pr&eacute;sente un &eacute;l&eacute;ment fragile sous la forme d'un disque &eacute;pais de verre, dont le montage le laisse libre de se dilater radialement. Lors des mises en marche du four, la face interne du disque (celle &agrave; l'int&eacute;rieur du four) subit une brusque &eacute;l&eacute;vation de temp&eacute;rature, alors que la face externe reste &agrave; la temp&eacute;rature ambiante de 20&deg;C. Le verre utilis&eacute; a les propri&eacute;t&eacute;s m&eacute;caniques et physiques suivantes :</p>
B20: =CONCATENATE(" forme d'un disque &eacute;pais de verre, dont le montage le laisse libre de se dilater radialement. Lors des mises en marche du four, la face interne du disque (celle &agrave; l'int&eacute;rieur du four)") -> forme d'un disque &eacute;pais de verre, dont le montage le laisse libre de se dilater radialement. Lors des mises en marche du four, la face interne du disque (celle &agrave; l'int&eacute;rieur du four) | C20: <ul>
B21: =CONCATENATE(" subit une brusque &eacute;l&eacute;vation de temp&eacute;rature, alors que la face externe reste &agrave; la temp&eacute;rature ambiante de 20&deg;C. Le verre utilis&eacute; a les propri&eacute;t&eacute;s") -> subit une brusque &eacute;l&eacute;vation de temp&eacute;rature, alors que la face externe reste &agrave; la temp&eacute;rature ambiante de 20&deg;C. Le verre utilis&eacute; a les propri&eacute;t&eacute;s | C21: <li>Rmt =#1# MPa (traction)</li>
B22: =CONCATENATE(" m&eacute;caniques et physiques suivantes :</p><ul><li>Rmt =",V1.Rmt_Piz," MPa (traction)</li><li>Rmc = ",V2.Rmc_Piz," MPa (compression)</li><li>nu = ",V3.nu_Piz,"</li><li>E = ",V4.E_Piz," GPa</li><li>alpha = ",V5.alpha_Piz,"&micro;m / m / K</li><li>KIC = ",V6.KIC_Piz," MPa.m1/2</li></ul><p>1.") -> m&eacute;caniques et physiques suivantes :</p><ul><li>Rmt =91 MPa (traction)</li><li>Rmc = 400 MPa (compression)</li><li>nu = 0.5</li><li>E = 75 GPa</li><li>alpha = 6&micro;m / m / K</li><li>KIC = 0.4 MPa.m1/2</li></ul><p>1. | C22: <li>Rmc = #2# MPa (compression)</li>
B23: =CONCATENATE(" Quel est le facteur de concentration de contrainte associ&eacute; au d&eacute;faut le plus s&eacute;v&egrave;re dans le mat&eacute;riau ? ",R1.ConcContr_Piz," [SD]</p><p>2. Quelle temp&eacute;rature maximale peut atteindre") -> Quel est le facteur de concentration de contrainte associ&eacute; au d&eacute;faut le plus s&eacute;v&egrave;re dans le mat&eacute;riau ? {1:NUMERICAL:=8.24E+01:8.24E+00} [SD]</p><p>2. Quelle temp&eacute;rature maximale peut atteindre | C23: <li>nu = #3#</li>
B24: =CONCATENATE(" le disque sans risquer de se rompre au cours d'un choc thermique infiniment s&eacute;v&egrave;re ? ",R2.DeltaT_Non_Ray_Piz," &deg;C</p><p>Les faces du disque sont ray&eacute;es au cours de son utilisation, par des fissures") -> le disque sans risquer de se rompre au cours d'un choc thermique infiniment s&eacute;v&egrave;re ? {2:NUMERICAL:=2.22E+02:2.22E+01} &deg;C</p><p>Les faces du disque sont ray&eacute;es au cours de son utilisation, par des fissures | C24: <li>E = #4# GPa</li> | K24: Un four à gaz est muni d'une fenêtre afin de permettre un contrôle visuel de l'états de cuisson. Cette fenêtre présente un élément fragile sous la forme d'un disque épais de verre, dont le montage le laisse libre de se dilater radialement. Lors des mises en marche du four, la face interne du disque (celle à l'intérieur du four) subit une brusque élévation de température, alors que la face externe reste à la température ambiante de 20°C. Le verre utilisé a les propriétés mécaniques et physiques suivantes :
B25: =CONCATENATE(" aigu&euml;s. La profondeur de ces fissures est de ",V7.profond_Piz," &micro;m.</p><p>3. Quelle est alors la r&eacute;sistance &agrave; la traction du verre ray&eacute; ? ",R3.Rm_T_Ray_Piz," MPa</p><p>4. Quelle temp&eacute;rature maximale") -> aigu&euml;s. La profondeur de ces fissures est de 40 &micro;m.</p><p>3. Quelle est alors la r&eacute;sistance &agrave; la traction du verre ray&eacute; ? {1:NUMERICAL:=3.57E+01:3.57E+00} MPa</p><p>4. Quelle temp&eacute;rature maximale | C25: <li>alpha = #5#</li>
B26: =CONCATENATE(" peut atteindre ce disque ray&eacute; au cours d'un choc thermique infiniment s&eacute;v&egrave;re ? ",R4.DeltaT_Ray_Piz," &deg;C") -> peut atteindre ce disque ray&eacute; au cours d'un choc thermique infiniment s&eacute;v&egrave;re ? {3:NUMERICAL:=9.93E+01:9.93E+00} &deg;C | C26: <li>KIC = #6# MPa.m1/2</li> | K26: =CONCATENATE("Rmt =",ROUND(V1.Rmt_Piz,0)," MPa (traction)\\") -> Rmt =91 MPa (traction)\\
B27: =CONCATENATE("") ->  | C27: </ul> | K27: =CONCATENATE("Rmc = ",ROUND(V2.Rmc_Piz,0)," MPa (compression)\\") -> Rmc = 400 MPa (compression)\\
C28: <p>1. Quel est le facteur de concentration de contrainte associ&eacute; au d&eacute;faut le plus s&eacute;v&egrave;re dans le mat&eacute;riau ? $1$ [SD]</p> | K28: =CONCATENATE("$\nu$ = ",ROUND(V3.nu_Piz,2)," [SD]\\") -> $\nu$ = 0.5 [SD]\\
C29: <p>2. Quelle temp&eacute;rature maximale peut atteindre le disque sans risquer de se rompre au cours d'un choc thermique infiniment s&eacute;v&egrave;re ? $2$ &deg;C</p> | K29: =CONCATENATE("E = ",ROUND(V4.E_Piz,0)," GPa\\") -> E = 75 GPa\\
C30: <p>Les faces du disque sont ray&eacute;es au cours de son utilisation, par des fissures aigu&euml;s. La profondeur de ces fissures est de #7# &micro;m.</p> | K30: =CONCATENATE("$\alpha$ = ",ROUND(V5.alpha_Piz,0)," µm/m/K\\") -> $\alpha$ = 6 µm/m/K\\
C31: <p>3. Quelle est alors la r&eacute;sistance &agrave; la traction du verre ray&eacute; ? $3$ MPa</p> | K31: =CONCATENATE("$K_{IC}$ = ",ROUND(V6.KIC_Piz,0)," \MpaRac{}\\") -> $K_{IC}$ = 0 \MpaRac{}\\
C32: <p>4. Quelle temp&eacute;rature maximale peut atteindre ce disque ray&eacute; au cours d'un choc thermique infiniment s&eacute;v&egrave;re ? $4$ C</p>
C33: <p>&nbsp;</p> | K33: =CONCATENATE("1. Quel est le facteur de concentration de contrainte associé au défaut le plus sévère dans le matériau ? \formsol{$\frac{E_Piz*1000}{{10*Rmt}}$} \minisol{",ROUND(F11,0),"} [SD]\\") -> 1. Quel est le facteur de concentration de contrainte associé au défaut le plus sévère dans le matériau ? \formsol{$\frac{E_Piz*1000}{{10*Rmt}}$} \minisol{82} [SD]\\
C34: <p>&nbsp;</p> | K34: =CONCATENATE("2. Quelle température maximale peut atteindre le disque sans risquer de se rompre au cours d'un choc thermique infiniment sévère ? \formsol{TR + Rm1 / E $\alpha$} \minisol{",ROUND(F12,0),"} °C\\") -> 2. Quelle température maximale peut atteindre le disque sans risquer de se rompre au cours d'un choc thermique infiniment sévère ? \formsol{TR + Rm1 / E $\alpha$} \minisol{222} °C\\
C35: Les faces du disque sont rayées au cours de son tulisation, par des fissures aiguës. La profondeur de ces fissures est de #7# µm. | G35: KIC | H35: 1.3 | I35: Mpa.m1/2 | K35: =CONCATENATE("Les faces du disque sont rayées au cours de son utilisation, par des fissures aiguës. La profondeur de ces fissures est de ",ROUND(V7.profond_Piz,0)," µm.\\") -> Les faces du disque sont rayées au cours de son utilisation, par des fissures aiguës. La profondeur de ces fissures est de 40 µm.\\
G36: Profond | H36: 10 | I36: µm | K36: =CONCATENATE("3. Quelle est alors la résistance à la traction du verre rayé ? \formsol{$Rm2=\frac{K_{IC}}{\sqrt{\pi a}}$} \minisol{",ROUND(F13,0),"} MPa\\") -> 3. Quelle est alors la résistance à la traction du verre rayé ? \formsol{$Rm2=\frac{K_{IC}}{\sqrt{\pi a}}$} \minisol{36} MPa\\
H37: =H35/(SQRT(PI()*H36*0.000001)) -> 231.9361351 | K37: =CONCATENATE("4. Quelle température maximale peut atteindre ce disque rayé au cours d'un choc thermique infiniment sévère ? \formsol{min(\formsol{TR + Rm1 / E $\alpha$} ; \formsol{TR + Rm2 / E $\alpha$})} \minisol{",ROUND(F14,0),"} °C\\") -> 4. Quelle température maximale peut atteindre ce disque rayé au cours d'un choc thermique infiniment sévère ? \formsol{min(\formsol{TR + Rm1 / E $\alpha$} ; \formsol{TR + Rm2 / E $\alpha$})} \minisol{99} °C\\
C38: Quelle est alors la résistance à la traction du verre rayé ? $3$ MPa
C40: Quelle température maximale peut atteindre ce disque rayé au cours d'un choc thermique infiniment sévère ? $4$ C

Sheet Traction
A1: catégorie_Tra | B1: Traction | C1: =CONCATENATE(" <!-- question XLQ ", titre_Tra, "-->") -> <!-- question XLQ Traction_Tra--> | F1: Valeur Mini_Tra | G1: Valeur Maxi_Tra | H1: Sig. Digit_Tra | I1: Val Choix_Tra
B2: Traction_Tra | C2: =CONCATENATE(" <question type=",CHAR(34),"category",CHAR(34),"><category><text>", categorie_Tra,"</text></category></question>)") -> <question type="category"><category><text>Traction</text></category></question>) | E2: V1.Long_Tra | F2: 100 | G2: 200 | H2: 1 | I2: =RANDBETWEEN(ValMini_Tra*10^-SigDig_Tra, ValMaxi_Tra*10^-SigDig_Tra)/10^-SigDig_Tra -> 110 | J2: mm | K2: 150 | T2: V1.Long_Tra | U2: 150
A3: Tag_Tra | B3: Traction_Tra | C3: <question type="cloze"> | E3: V.Diam_Tra | F3: =V1.Long_Tra/30 -> 3.666666667 | G3: =V1.Long_Tra/20 -> 5.5 | H3: 0 | I3: 4 | J3: mm | K3: 3.5 | T3: V.Diam_Tra | U3: 10 | CA3: <p>On effectue un essai de traction sur une &eacute;prouvette de 10 mm de diam&egrave;tre et de #1# 150 mm de <br />longueur. On observe que : le diam&egrave;tre s'est r&eacute;duit de #2# 3,5 &micro;m sous une charge de #3# 6 kN durant <br />la d&eacute;formation &eacute;lastique; et que la limite d'&eacute;lasticit&eacute; est atteinte pour une <br />force de #4# 39 kN et un allongement total de #5# 1,36 mm. La force maximale que peut supporter <br />l'&eacute;prouvette est de #6# 43 kN.</p><p><p>a) Quelle est la limite conventionnelle d'&eacute;lasticit&eacute; (contrainte) ? R&eacute;ponse : $1$ MPa</p><p><p>b) Quelle est la r&eacute;sistance &agrave; la traction de ce mat&eacute;riau? $2$ MPa</p><p><p>c) Quelle est la limite &eacute;lastique de d&eacute;formation totale (en %) ? $3$%</p><p><p>d) Quel est le module d'Young de ce mat&eacute;riau ? $4$ MPa</p><p><p>e) Quel est le coefficient de Poisson de ce mat&eacute;riau ? $5$</p><p><p>f) Quelle est l'&eacute;nergie &eacute;lastique emmagasin&eacute;e dans l'&eacute;prouvette &agrave; la limite &eacute;lastique ? $6$</p><p><p>&nbsp;</p><p>
A4: idnumber_Tra | B4: =TEXT(NOW(),"aammjj-hhmmss.00") -> 210710-210925.17 | C4: =CONCATENATE(" <name><text>", titre_Tra, "</text></name>") -> <name><text>Traction_Tra</text></name> | E4: V2.Red_Dia_Tra | F4: 3 | G4: 4 | H4: -1 | I4: 3.6 | J4: µm | K4: 3.5 | T4: V2.Red_Dia_Tra | U4: 3.5
A5: points_Tra | B5: 1 | C5: <questiontext format="html"> | E5: V3.Charge_Tra | F5: 4 | G5: 9 | H5: 0 | I5: 6 | J5: kN | K5: 6 | T5: V3.Charge_Tra | U5: 6
A6: tolérance_Tra | B6: 0.1 | C6: =CONCATENATE(" <text><![CDATA[<p>", question_Tra, "</p>]]></text>") -> <text><![CDATA[<p> On effectue un essai de traction sur une &eacute;prouvette de 4 mm de diam&egrave;tre et de 110 mm de <br />longueur. On observe que : le diam&egrave;tre s'est r&eacute;duit de 3.6 &micro;m sous une charge de 6 kN durant <br />la d&eacute;formation &eacute;lastique; et que la limite d'&eacute;lasticit&eacute; est atteinte pour une <br />force de 36 kN et un allongement total de 1.64 mm. La force maximale que peut supporter <br />l'&eacute;prouvette est de 39 kN.</p><p><p>a) Quelle est la limite d'&eacute;lasticit&eacute; (contrainte) ? R&eacute;ponse : {1:NUMERICAL:=2.86E+03:2.86E+02}MPa</p><p><p>b) Quelle est la r&eacute;sistance &agrave; la traction de ce mat&eacute;riau? {2:NUMERICAL:=3.10E+03:3.10E+02} MPa</p><p><p>c) Quelle est la limite &eacute;lastique de d&eacute;formation (en %) ? {2:NUMERICAL:=1.49E+00:1.49E-01}%</p><p><p>d) Quel est le module d'Young de ce mat&eacute;riau ? {3:NUMERICAL:=1.92E+05:1.92E+04} MPa</p><p><p>e) Quelle est l'&eacute;nergie &eacute;lastique emmagasin&eacute;e dans l'&eacute;prouvette &agrave; la limite &eacute;lastique ? {4:NUMERICAL:=2.14E+01:2.14E+00} J</p><p><p>&nbsp;</p><p></p>]]></text> | E6: V4.Force_Elas_Tra | F6: 33 | G6: 44 | H6: 0 | I6: 36 | J6: kN | K6: 39 | T6: V4.Force_Elas_Tra | U6: 39
A7: penalité_Tra | B7: 0.1 | C7: </questiontext> | E7: V5.Allonge_Tra | F7: 1 | G7: 2 | H7: -2 | I7: 1.64 | J7: mm | K7: 1.36 | T7: V5.Allonge_Tra | U7: 1.36
A8: feedback_Tra | B8: _ | C8: =CONCATENATE(" <defaultgrade>",points_Tra,"</defaultgrade><generalfeedback><text>",feedback_Tra,"</text></generalfeedback><penalty>",penalty_Tra,"</penalty><hidden>0</hidden>)") -> <defaultgrade>1</defaultgrade><generalfeedback><text>_</text></generalfeedback><penalty>0.1</penalty><hidden>0</hidden>) | E8: V6.Force_Max_Tra | F8: =V4.Force_Elas_Tra+2 -> 38 | G8: =F8+15 -> 53 | H8: 0 | I8: 39 | J8: kN | K8: 43 | T8: V6.Force_Max_Tra | U8: 43
A9: Cellule vides_Tra | B9: =COUNTBLANK(B1:B8) -> 0 | C9: =CONCATENATE(" <idnumber>",idnumber_Tra,"</idnumber><tags><tag><text>",Tag_Tra,"</text></tag></tags>") -> <idnumber>210710-210925.17</idnumber><tags><tag><text>Traction_Tra</text></tag></tags> | I9: 0
A10: question format HTML_Tra | B10: =CONCATENATE(" ",B19,B20,B21,B22,B23,B24,B25,B26,B27,B28,B29,B30) -> On effectue un essai de traction sur une &eacute;prouvette de 4 mm de diam&egrave;tre et de 110 mm de <br />longueur. On observe que : le diam&egrave;tre s'est r&eacute;duit de 3.6 &micro;m sous une charge de 6 kN durant <br />la d&eacute;formation &eacute;lastique; et que la limite d'&eacute;lasticit&eacute; est atteinte pour une <br />force de 36 kN et un allongement total de 1.64 mm. La force maximale que peut supporter <br />l'&eacute;prouvette est de 39 kN.</p><p><p>a) Quelle est la limite d'&eacute;lasticit&eacute; (contrainte) ? R&eacute;ponse : {1:NUMERICAL:=2.86E+03:2.86E+02}MPa</p><p><p>b) Quelle est la r&eacute;sistance &agrave; la traction de ce mat&eacute;riau? {2:NUMERICAL:=3.10E+03:3.10E+02} MPa</p><p><p>c) Quelle est la limite &eacute;lastique de d&eacute;formation (en %) ? {2:NUMERICAL:=1.49E+00:1.49E-01}%</p><p><p>d) Quel est le module d'Young de ce mat&eacute;riau ? {3:NUMERICAL:=1.92E+05:1.92E+04} MPa</p><p><p>e) Quelle est l'&eacute;nergie &eacute;lastique emmagasin&eacute;e dans l'&eacute;prouvette &agrave; la limite &eacute;lastique ? {4:NUMERICAL:=2.14E+01:2.14E+00} J</p><p><p>&nbsp;</p><p> | C10: </question> | F10: Cible_Tra | G10: Toler_Tra | H10: PointsQuestion_Tra
A11: Repere Var Rep | B11: _Tra | E11: R1.Lim_Elas_Tra | F11: =1000*V4.Force_Elas_Tra/(PI()*0.25*(V.Diam_Tra)^2) -> 2864.788976 | G11: =tolerance_Tra*ValMini_Tra -> 286.4788976 | H11: 1 | I11: =CONCATENATE("{",PointsQuestion_Tra,":NUMERICAL:=",TEXT(Cible_Tra,"0.00E+00"),":",TEXT(ABS(Tolere_Tra),"0.00E+00"),"}") -> {1:NUMERICAL:=2.86E+03:2.86E+02} | K11: =K6/(PI()*0.01^2/4)/1000 -> 496.5634224 | T11: R1.Lim_Elas_Tra | U11: 496,6 MPa
A12: HTML File | B12: =CONCATENATE(categorie_Tra,"_HTML.txt") -> Traction_HTML.txt | E12: R2.Resis_Meca_Tra | F12: =1000*V6.Force_Max_Tra/(PI()*(V.Diam_Tra)^2/4) -> 3103.52139 | G12: 310.352139 | H12: 2 | I12: {2:NUMERICAL:=3.10E+03:3.10E+02} | T12: R2.Resis_Meca_Tra | U12: 547,5 MPa
A13: Valide ? | B13: =AND(ISNUMBER(I17)) -> TRUE | E13: R3.Def_Ela_Tra | F13: =100*V5.Allonge_Tra/V1.Long_Tra -> 1.490909091 | G13: 0.1490909091 | H13: 2 | I13: {2:NUMERICAL:=1.49E+00:1.49E-01} | T13: R3.Def_Ela_Tra | U13: 0,907 %
A14: https://html-online.com/editor/ | E14: R4.Module_You_Tra | F14: =F11/(F13/100) -> 192150.4801 | G14: 19215.04801 | H14: 3 | I14: {3:NUMERICAL:=1.92E+05:1.92E+04} | T14: R4.Module_You_Tra | U14: 70,2 GPa
C15: 8 | T15: R5.Poisson_Tra | U15: 0,32
A16: Var : | B16: # | C16: 6 | E16: R6.Ener_Elas_Tra | F16: =F13*F11/(2*100) -> 21.35569964 | G16: 2.135569964 | H16: 4 | I16: {4:NUMERICAL:=2.14E+01:2.14E+00} | T16: R6.Ener_Elas_Tra | U16: 21,76 J
A17: Res : | B17: $ | C17: 6 | F17: =2*((F6*1000)^2*V1.Long_Tra/1000)/(PI()*F14*1000000000*10*0.001) -> 3.9688e-05 | I17: =SUM(F11:H16) -> 217967.8008
B19: =CONCATENATE("On effectue un essai de traction sur une &eacute;prouvette de ",V.Diam_Tra," mm de diam&egrave;tre et de ",V1.Long_Tra," mm de <br />longueur. On observe que : le diam&egrave;tre s'est r&eacute;duit de ",V2.Red_Dia_Tra," &micro;m") -> On effectue un essai de traction sur une &eacute;prouvette de 4 mm de diam&egrave;tre et de 110 mm de <br />longueur. On observe que : le diam&egrave;tre s'est r&eacute;duit de 3.6 &micro;m | C19: <p>On effectue un essai de traction sur une &eacute;prouvette de 10 mm de diam&egrave;tre et de #1# 150 mm de <br />longueur. On observe que : le diam&egrave;tre s'est r&eacute;duit de #2# 3,5 &micro;m sous une charge de #3# 6 kN durant <br />la d&eacute;formation &eacute;lastique; et que la limite d'&eacute;lasticit&eacute; est atteinte pour une <br />force de #4# 39 kN et un allongement total de #5# 1,36 mm. La force maximale que peut supporter <br />l'&eacute;prouvette est de #6# 43 kN.</p>
B20: =CONCATENATE(" sous une charge de ",V3.Charge_Tra," kN durant <br />la d&eacute;formation &eacute;lastique; et que la limite d'&eacute;lasticit&eacute; est atteinte pour une <br />force de ",V4.Force_Elas_Tra," kN et un allongement total de ",V5.Allonge_Tra,"") -> sous une charge de 6 kN durant <br />la d&eacute;formation &eacute;lastique; et que la limite d'&eacute;lasticit&eacute; est atteinte pour une <br />force de 36 kN et un allongement total de 1.64 | C20: <p>a) Quelle est la limite conventionnelle d'&eacute;lasticit&eacute; (contrainte) ? R&eacute;ponse : $1$ MPa</p>
B21: =CONCATENATE(" mm. La force maximale que peut supporter <br />l'&eacute;prouvette est de ",V6.Force_Max_Tra," kN.</p><p><p>a) Quelle est la limite d'&eacute;lasticit&eacute; (contrainte) ? R&eacute;ponse : ",R1.Lim_Elas_Tra,"") -> mm. La force maximale que peut supporter <br />l'&eacute;prouvette est de 39 kN.</p><p><p>a) Quelle est la limite d'&eacute;lasticit&eacute; (contrainte) ? R&eacute;ponse : {1:NUMERICAL:=2.86E+03:2.86E+02} | C21: <p>b) Quelle est la r&eacute;sistance &agrave; la traction de ce mat&eacute;riau? $2$ MPa</p>
B22: =CONCATENATE("MPa</p><p><p>b) Quelle est la r&eacute;sistance &agrave; la traction de ce mat&eacute;riau? ",R2.Resis_Meca_Tra," MPa</p><p><p>c) Quelle est la limite &eacute;lastique de d&eacute;formation (en %) ? ",R3.Def_Ela_Tra,"%</p><p><p>d)") -> MPa</p><p><p>b) Quelle est la r&eacute;sistance &agrave; la traction de ce mat&eacute;riau? {2:NUMERICAL:=3.10E+03:3.10E+02} MPa</p><p><p>c) Quelle est la limite &eacute;lastique de d&eacute;formation (en %) ? {2:NUMERICAL:=1.49E+00:1.49E-01}%</p><p><p>d) | C22: <p>c) Quelle est la limite &eacute;lastique de d&eacute;formation totale (en %) ? $3$%</p>
B23: =CONCATENATE(" Quel est le module d'Young de ce mat&eacute;riau ? ",R4.Module_You_Tra," MPa</p><p><p>e) Quelle est l'&eacute;nergie &eacute;lastique emmagasin&eacute;e") -> Quel est le module d'Young de ce mat&eacute;riau ? {3:NUMERICAL:=1.92E+05:1.92E+04} MPa</p><p><p>e) Quelle est l'&eacute;nergie &eacute;lastique emmagasin&eacute;e | C23: <p>d) Quel est le module d'Young de ce mat&eacute;riau ? $4$ MPa</p>
B24: =CONCATENATE(" dans l'&eacute;prouvette &agrave; la limite &eacute;lastique ? ",R6.Ener_Elas_Tra," J</p><p><p>&nbsp;</p><p>") -> dans l'&eacute;prouvette &agrave; la limite &eacute;lastique ? {4:NUMERICAL:=2.14E+01:2.14E+00} J</p><p><p>&nbsp;</p><p> | C24: <p>e) Quel est le coefficient de Poisson de ce mat&eacute;riau ? $5$</p>
B25: =CONCATENATE("") ->  | C25: <p>f) Quelle est l'&eacute;nergie &eacute;lastique emmagasin&eacute;e dans l'&eacute;prouvette &agrave; la limite &eacute;lastique ? $6$</p>
C26: <p>&nbsp;</p>
G27: eps | H27: sig
G28: 0 | H28: 0
G29: =F13 -> 1.490909091 | H29: =F11 -> 2864.788976 | N29: :%s/{.*}/\\minisol{";;"}
G30: 1 | H30: =F12 -> 3103.52139 | N30: :%g/";;"/ s/^/=concatener("/ | T30: =CONCATENATE("On effectue un essai de traction sur une éprouvette de ",V2.Red_Dia_Tra," mm de diamètre et de ",V1.Long_Tra," mm de") -> On effectue un essai de traction sur une éprouvette de 3.6 mm de diamètre et de 110 mm de
N31: :%g/";;"/ s/$/") | T31: =CONCATENATE("longueur. On observe que : le diamètre s'est réduit de ",V2.Red_Dia_Tra," µm sous une charge de ",V3.Charge_Tra," kN durant") -> longueur. On observe que : le diamètre s'est réduit de 3.6 µm sous une charge de 6 kN durant
N32: :%s/=concatener("=concatener("/=concatener("/gie | T32: =CONCATENATE("la déformation élastique; et que la limite d'élasticité est atteinte pour une") -> la déformation élastique; et que la limite d'élasticité est atteinte pour une
N33: :%s/")")/")/gie | T33: =CONCATENATE("force de ",V4.Force_Elas_Tra," kN et un allongement total de ",V5.Allonge_Tra," mm. La force maximale que peut supporter") -> force de 36 kN et un allongement total de 1.64 mm. La force maximale que peut supporter
M34: =CONCATENATE("On réalise un essai de traction sur une éprouvette de ",V.Diam_Tra," mm de diamètre et de ",V1.Long_Tra," mm de ") -> On réalise un essai de traction sur une éprouvette de 4 mm de diamètre et de 110 mm de | T34: =CONCATENATE("l'éprouvette est de ",V6.Force_Max_Tra," kN.") -> l'éprouvette est de 39 kN.
M35: =CONCATENATE("longueur. Le diamètre se réduit de ",V2.Red_Dia_Tra," µm sous une charge de ",V3.Charge_Tra," kN, dans ") -> longueur. Le diamètre se réduit de 3.6 µm sous une charge de 6 kN, dans
M36: la déformation élastique et que la limite d'élasticité est atteinte pour une | T36: =CONCATENATE("a) Quelle est la limite d'élasticité (contrainte) ? \minisol{",ROUND(F11,0),"} MPa}") -> a) Quelle est la limite d'élasticité (contrainte) ? \minisol{2865} MPa}
M37: =CONCATENATE("force de ",V4.Force_Elas_Tra," kN et un allongement total de ",V5.Allonge_Tra," mm. La force maximale que peut supporter ") -> force de 36 kN et un allongement total de 1.64 mm. La force maximale que peut supporter | T37: =CONCATENATE("b) Quelle est la résistance à la traction de ce matériau ? \minisol{", ROUND(F12,0),"} MPa") -> b) Quelle est la résistance à la traction de ce matériau ? \minisol{3104} MPa
M38: =CONCATENATE("l'éprouvette est de ",V6.Force_Max_Tra," kN.\\") -> l'éprouvette est de 39 kN.\\ | T38: =CONCATENATE("c) Quelle est la limite élastique de déformation totale (en %) ?",ROUND(F13,0),"%") -> c) Quelle est la limite élastique de déformation totale (en %) ?1%
T39: =CONCATENATE("d) Quel est le module d'Young de ce matériau ? \minisol{",ROUND(F14,0),"} MPa") -> d) Quel est le module d'Young de ce matériau ? \minisol{192150} MPa
M40: =CONCATENATE("a) Quelle est la limite d'élasticité (contrainte nominale = $F/S_0$? \formsol{$F_{el} / (\pi d^2 /4)$} \minisol{",ROUND(F11,0),"} MPa\\") -> a) Quelle est la limite d'élasticité (contrainte nominale = $F/S_0$? \formsol{$F_{el} / (\pi d^2 /4)$} \minisol{2865} MPa\\ | T40: =CONCATENATE("e) Quelle est l'énergie élastique emmagasinée dans l'éprouvette à la limite élastique ? \minisol{",ROUND(F16,0),"J}") -> e) Quelle est l'énergie élastique emmagasinée dans l'éprouvette à la limite élastique ? \minisol{21J}
M41: =CONCATENATE("b) Quelle est la résistance à la traction de ce matériau? \formsol{$F_{Max} / (\pi d^2 / 4) $ } \minisol{",ROUND(F12,0),"} MPa\\") -> b) Quelle est la résistance à la traction de ce matériau? \formsol{$F_{Max} / (\pi d^2 / 4) $ } \minisol{3104} MPa\\
M42: =CONCATENATE("c) Quelle est la limite élastique de déformation (en \%) ? \formsol{$\epsilon_{el} / L_0$} \minisol{",ROUND(F13,2),"}\%\\") -> c) Quelle est la limite élastique de déformation (en \%) ? \formsol{$\epsilon_{el} / L_0$} \minisol{1.49}\%\\
M43: =CONCATENATE("d) Quel est le module d'Young de ce matériau ? \formsol{$\sigma_{el} / \varepsilon_{el} $} \minisol{",ROUND(F14,-2),"} MPa\\") -> d) Quel est le module d'Young de ce matériau ? \formsol{$\sigma_{el} / \varepsilon_{el} $} \minisol{192200} MPa\\
M44: =CONCATENATE("e) Quelle est l'énergie élastique emmagasinée dans l'éprouvette à la limite élastique ? \formsol{$\sigma_{el} * \varepsilon_{el} / (2 *100)$}\minisol{",ROUND(F16,1),"} J") -> e) Quelle est l'énergie élastique emmagasinée dans l'éprouvette à la limite élastique ? \formsol{$\sigma_{el} * \varepsilon_{el} / (2 *100)$}\minisol{21.4} J

Sheet VerreSimple
A1: catégorie_Vsi | B1: VerreSimple | C1: =CONCATENATE(" <!-- question XLQ ", titre_Vsi, "-->") -> <!-- question XLQ VerreSimple_Vsi--> | F1: Valeur Mini_Vsi | G1: Valeur Maxi_Vsi | H1: Sig. Digit_Vsi | I1: Val Choix_Vsi
B2: VerreSimple_Vsi | C2: =CONCATENATE(" <question type=",CHAR(34),"category",CHAR(34),"><category><text>", categorie_Vsi,"</text></category></question>)") -> <question type="category"><category><text>VerreSimple</text></category></question>) | E2: V1.Module_Vsi | F2: 65 | G2: 75 | H2: 0 | I2: =RANDBETWEEN(ValMini_Vsi*10^-SigDig_Vsi, ValMaxi_Vsi*10^-SigDig_Vsi)/10^-SigDig_Vsi -> 67 | J2: Gpa | L2: 70
A3: Tag_Vsi | B3: VerreSimple_Vsi | C3: <question type="cloze"> | E3: V2.Rm_Vsi | F3: 50 | G3: 90 | H3: 0 | I3: =RANDBETWEEN(ValMini_Vsi*10^-SigDig_Vsi, ValMaxi_Vsi*10^-SigDig_Vsi)/10^-SigDig_Vsi -> 67 | J3: Mpa | L3: 70 | CA3: <p>Mat&eacute;riau fragile, le verre ordinaire a un module d'Young E &eacute;gal &agrave; #1#GPa<br />1. Si le verre &eacute;tait un mat&eacute;riau parfait, quelle serait la valeur (en MPa) de sa r&eacute;sistance &agrave; la traction ? $1$ MPa \formsol{$$} \minisol{"";arrondi(I2;0);""}<br />2. Quelle serait la d&eacute;formation (en %) que ce verre pourrait supporter avant de se rompre ? $2$ % \formsol{$$} \minisol{"";arrondi(I2;0);""}</p><p><p>N'&eacute;tant pas un mat&eacute;riau parfait, le verre ordinaire a une r&eacute;sistance &agrave; la traction Rm proche de #2# MPa.</p><p><p>3. Quel est l'allongement &agrave; rupture d'un tel mat&eacute;riau ? $3$ % \formsol{$$} \minisol{"";arrondi(I2;0);""}</p><p><p>4. Quelle est la valeur du facteur de concentration de contrainte Kt associ&eacute;e au micro d&eacute;faut le plus s&eacute;v&egrave;re qui existe dans ce verre ? $4$ \formsol{$$} \minisol{"";arrondi(I2;0);""}</p><p><p>On observe en microscopie &eacute;l&eacute;ectronique des micro-d&eacute;fauts superficiels assimilables &agrave; des fissures semi-elliptiques dont la profondeur a = #3# &micro;m.<br />5. Quelle est la valeur (en nm) du rayon de courbure du micro-d&eacute;faut le plus s&eacute;v&egrave;re qui a entra&icirc;n&eacute; la rupture de l'&eacute;prouvette de traction ? $5$ \formsol{$$} \minisol{"";arrondi(I2;0);""}</p><p><p>&nbsp;</p><p>N'étant pas un matériau parfait, le verre ordinaire a une résistance à la traction Rm proche de #2# MPa.<p>3. Quel est l'allongement à rupture d'un tel matériau ? $3$ % \formsol{$$} \minisol{;;}<p>4. Quelle est la valeur du facteur de concentration de contrainte Kt associée au micro défaut le plus sévère qui existe dans ce verre ? $4$ \formsol{$$} \minisol{;;}<p>On observe en microscopie éléectronique des micro-défauts superficiels assimilables à des fissures semi-elliptiques dont la profondeur a = #3# µm.<p>5. Quelle est la valeur (en nm) du rayon de courbure du micro-défaut le plus sévère qui a entraîné la rupture de l'éprouvette de traction ? $5$ \formsol{$$} \minisol{;;}<p>
A4: idnumber_Vsi | B4: =TEXT(NOW(),"aammjj-hhmmss.00") -> 210710-210925.17 | C4: =CONCATENATE(" <name><text>", titre_Vsi, "</text></name>") -> <name><text>VerreSimple_Vsi</text></name> | E4: V3.Profond_Vsi | F4: 0.1 | G4: 2.7 | H4: -1 | I4: =RANDBETWEEN(ValMini_Vsi*10^-SigDig_Vsi, ValMaxi_Vsi*10^-SigDig_Vsi)/10^-SigDig_Vsi -> 1.2 | J4: µm | L4: 1
A5: points_Vsi | B5: 1 | C5: <questiontext format="html"> | I5: =RANDBETWEEN(ValMini_Vsi*10^-SigDig_Vsi, ValMaxi_Vsi*10^-SigDig_Vsi)/10^-SigDig_Vsi -> 0
A6: tolérance_Vsi | B6: 0.05 | C6: =CONCATENATE(" <text><![CDATA[<p>", question_Vsi, "</p>]]></text>") -> <text><![CDATA[<p> Mat&eacute;riau fragile, le verre ordinaire a un module d'Young E &eacute;gal &agrave; 67GPa<br />1. Si le verre &eacute;tait un mat&eacute;riau parfait, quelle serait la valeur (en MPa) de sa r&eacute;sistance &agrave; la traction ? {1:NUMERICAL:=6.70E+03:3.35E+02} MPa <br />2. Quelle serait la d&eacute;formation (en %) que ce verre pourrait supporter avant de se rompre ? {1:NUMERICAL:=1.00E+01:5.00E-01} % </p><p><p>N'&eacute;tant pas un mat&eacute;riau parfait, le verre ordinaire a une r&eacute;sistance &agrave; la traction Rm proche de 67 MPa.</p><p><p>3. Quel est l'allongement &agrave; rupture d'un tel mat&eacute;riau ? {1:NUMERICAL:=1.00E+00:5.00E-02}% .</p><p><p>4. Quelle est la valeur du facteur de concentration de contrainte Kt associ&eacute;e au micro d&eacute;faut le plus s&eacute;v&egrave;re qui existe dans ce verre ? {2:NUMERICAL:=1.00E+02:5.00E+00} </p><p><p>On observe en microscopie &eacute;l&eacute;ectronique des micro-d&eacute;fauts superficiels assimilables &agrave; des fissures semi-elliptiques dont la profondeur a = 1.2 &micro;m.<br />5. Quelle est la valeur (en nm) du rayon de courbure du micro-d&eacute;faut le plus s&eacute;v&egrave;re qui a entra&icirc;n&eacute; la rupture de l'&eacute;prouvette de traction ? {3:NUMERICAL:=4.80E-01:2.40E-02} </p><p><p>&nbsp;</p></p>]]></text> | F6: Cible_Vsi | G6: Toler_Vsi | H6: PointsQuestion_Vsi
A7: penalité_Vsi | B7: 0.1 | C7: </questiontext> | E7: R1.RmTH_Vsi | F7: =V1.Module_Vsi*1000/10 -> 6700 | G7: =tolerance_Vsi*ValMini_Vsi -> 335 | H7: 1 | I7: =CONCATENATE("{",PointsQuestion_Vsi,":NUMERICAL:=",TEXT(Cible_Vsi,"0.00E+00"),":",TEXT(ABS(Tolere_Vsi),"0.00E+00"),"}") -> {1:NUMERICAL:=6.70E+03:3.35E+02} | L7: 7000
A8: feedback_Vsi | B8: _ | C8: =CONCATENATE(" <defaultgrade>",points_Vsi,"</defaultgrade><generalfeedback><text>",feedback_Vsi,"</text></generalfeedback><penalty>",penalty_Vsi,"</penalty><hidden>0</hidden>)") -> <defaultgrade>1</defaultgrade><generalfeedback><text>_</text></generalfeedback><penalty>0.1</penalty><hidden>0</hidden>) | E8: R2.eps_TH_Vsi | F8: =10 -> 10 | G8: =tolerance_Vsi*ValMini_Vsi -> 0.5 | H8: 1 | I8: =CONCATENATE("{",PointsQuestion_Vsi,":NUMERICAL:=",TEXT(Cible_Vsi,"0.00E+00"),":",TEXT(ABS(Tolere_Vsi),"0.00E+00"),"}") -> {1:NUMERICAL:=1.00E+01:5.00E-01} | L8: 0.1
A9: Cellule vides_Vsi | B9: =COUNTBLANK(B1:B8) -> 0 | C9: =CONCATENATE(" <idnumber>",idnumber_Vsi,"</idnumber><tags><tag><text>",Tag_Vsi,"</text></tag></tags>") -> <idnumber>210710-210925.17</idnumber><tags><tag><text>VerreSimple_Vsi</text></tag></tags> | E9: R3.EpsVrai_Vsi | F9: =100*V2.Rm_Vsi/F7 -> 1 | G9: =tolerance_Vsi*ValMini_Vsi -> 0.05 | H9: 1 | I9: =CONCATENATE("{",PointsQuestion_Vsi,":NUMERICAL:=",TEXT(Cible_Vsi,"0.00E+00"),":",TEXT(ABS(Tolere_Vsi),"0.00E+00"),"}") -> {1:NUMERICAL:=1.00E+00:5.00E-02} | L9: 0.07
A10: question format HTML_Vsi | B10: =CONCATENATE(" ",B19,B20,B21,B22,B23,B24,B25,B26,B27,B28,B29,B30,B31,B32,B33,B34,B35,B36,B37,B38,B39) -> Mat&eacute;riau fragile, le verre ordinaire a un module d'Young E &eacute;gal &agrave; 67GPa<br />1. Si le verre &eacute;tait un mat&eacute;riau parfait, quelle serait la valeur (en MPa) de sa r&eacute;sistance &agrave; la traction ? {1:NUMERICAL:=6.70E+03:3.35E+02} MPa <br />2. Quelle serait la d&eacute;formation (en %) que ce verre pourrait supporter avant de se rompre ? {1:NUMERICAL:=1.00E+01:5.00E-01} % </p><p><p>N'&eacute;tant pas un mat&eacute;riau parfait, le verre ordinaire a une r&eacute;sistance &agrave; la traction Rm proche de 67 MPa.</p><p><p>3. Quel est l'allongement &agrave; rupture d'un tel mat&eacute;riau ? {1:NUMERICAL:=1.00E+00:5.00E-02}% .</p><p><p>4. Quelle est la valeur du facteur de concentration de contrainte Kt associ&eacute;e au micro d&eacute;faut le plus s&eacute;v&egrave;re qui existe dans ce verre ? {2:NUMERICAL:=1.00E+02:5.00E+00} </p><p><p>On observe en microscopie &eacute;l&eacute;ectronique des micro-d&eacute;fauts superficiels assimilables &agrave; des fissures semi-elliptiques dont la profondeur a = 1.2 &micro;m.<br />5. Quelle est la valeur (en nm) du rayon de courbure du micro-d&eacute;faut le plus s&eacute;v&egrave;re qui a entra&icirc;n&eacute; la rupture de l'&eacute;prouvette de traction ? {3:NUMERICAL:=4.80E-01:2.40E-02} </p><p><p>&nbsp;</p> | C10: </question> | E10: R4.KT_Vsi | F10: =(1000*V1.Module_Vsi)/(10*V2.Rm_Vsi) -> 100 | G10: =tolerance_Vsi*ValMini_Vsi -> 5 | H10: 2 | I10: =CONCATENATE("{",PointsQuestion_Vsi,":NUMERICAL:=",TEXT(Cible_Vsi,"0.00E+00"),":",TEXT(ABS(Tolere_Vsi),"0.00E+00"),"}") -> {2:NUMERICAL:=1.00E+02:5.00E+00} | L10: 116
A11: Repere Var Rep | B11: _Vsi | E11: R5.rho_Vsi | F11: =1000000000*4*(V3.Profond_Vsi*0.000001)*((V2.Rm_Vsi/F7)^2) -> 0.48 | G11: =tolerance_Vsi*ValMini_Vsi -> 0.024 | H11: 3 | I11: =CONCATENATE("{",PointsQuestion_Vsi,":NUMERICAL:=",TEXT(Cible_Vsi,"0.00E+00"),":",TEXT(ABS(Tolere_Vsi),"0.00E+00"),"}") -> {3:NUMERICAL:=4.80E-01:2.40E-02} | L11: 0.3
A12: HTML File | B12: =CONCATENATE(categorie_Vsi,"_HTML.txt") -> VerreSimple_HTML.txt
A13: Valide ? | B13: =AND(ISNUMBER(F13),F11>0.2) -> TRUE | F13: =SUM(F7:G11) -> 7152.054
A14: https://html-online.com/editor/
C15: 5
A16: Var : | B16: # | C16: 3
A17: Res : | B17: $ | C17: 5
B19: =CONCATENATE("Mat&eacute;riau fragile, le verre ordinaire a un module d'Young E &eacute;gal &agrave; ",V1.Module_Vsi,"GPa<br />1. Si le verre &eacute;tait un mat&eacute;riau parfait, quelle serait la valeur (en MPa) de sa r&eacute;sistance") -> Mat&eacute;riau fragile, le verre ordinaire a un module d'Young E &eacute;gal &agrave; 67GPa<br />1. Si le verre &eacute;tait un mat&eacute;riau parfait, quelle serait la valeur (en MPa) de sa r&eacute;sistance | C19: <p>Mat&eacute;riau fragile, le verre ordinaire a un module d'Young E &eacute;gal &agrave; #1#GPa<br />1. Si le verre &eacute;tait un mat&eacute;riau parfait, quelle serait la valeur (en MPa) de sa r&eacute;sistance &agrave; la traction ? $1$ MPa \formsol{$$} \minisol{";arrondi(I2;0);"}<br />2. Quelle serait la d&eacute;formation (en %) que ce verre pourrait supporter avant de se rompre ? $2$ % \formsol{$$} \minisol{";arrondi(I2;0);"}</p>
B20: =CONCATENATE(" &agrave; la traction ? ",R1.RmTH_Vsi," MPa <br />2. Quelle serait la d&eacute;formation (en %) que ce verre pourrait supporter avant de se rompre ? ",R2.eps_TH_Vsi," % </p><p><p>N'&eacute;tant") -> &agrave; la traction ? {1:NUMERICAL:=6.70E+03:3.35E+02} MPa <br />2. Quelle serait la d&eacute;formation (en %) que ce verre pourrait supporter avant de se rompre ? {1:NUMERICAL:=1.00E+01:5.00E-01} % </p><p><p>N'&eacute;tant | C20: <p>N'&eacute;tant pas un mat&eacute;riau parfait, le verre ordinaire a une r&eacute;sistance &agrave; la traction Rm proche de #2# MPa.</p>
B21: =CONCATENATE(" pas un mat&eacute;riau parfait, le verre ordinaire a une r&eacute;sistance &agrave; la traction Rm proche de ",V2.Rm_Vsi," MPa.</p><p><p>3. Quel est l'allongement &agrave; rupture d'un tel mat&eacute;riau ? ",R3.EpsVrai_Vsi,"") -> pas un mat&eacute;riau parfait, le verre ordinaire a une r&eacute;sistance &agrave; la traction Rm proche de 67 MPa.</p><p><p>3. Quel est l'allongement &agrave; rupture d'un tel mat&eacute;riau ? {1:NUMERICAL:=1.00E+00:5.00E-02} | C21: <p>3. Quel est l'allongement &agrave; rupture d'un tel mat&eacute;riau ? $3$ % \formsol{$$} \minisol{";arrondi(I2;0);"}</p>
B22: =CONCATENATE("% .</p><p><p>4. Quelle est la valeur du facteur de concentration de contrainte Kt associ&eacute;e au micro d&eacute;faut le plus s&eacute;v&egrave;re qui existe") -> % .</p><p><p>4. Quelle est la valeur du facteur de concentration de contrainte Kt associ&eacute;e au micro d&eacute;faut le plus s&eacute;v&egrave;re qui existe | C22: <p>4. Quelle est la valeur du facteur de concentration de contrainte Kt associ&eacute;e au micro d&eacute;faut le plus s&eacute;v&egrave;re qui existe dans ce verre ? $4$ \formsol{$$} \minisol{";arrondi(I2;0);"}</p> | K22: =CONCATENATE("Matériau fragile, le verre ordinaire a un module d'Young E égal à ",V1.Module_Vsi," GPa\\") -> Matériau fragile, le verre ordinaire a un module d'Young E égal à 67 GPa\\
B23: =CONCATENATE(" dans ce verre ? ",R4.KT_Vsi," </p><p><p>On observe en microscopie &eacute;l&eacute;ectronique des micro-d&eacute;fauts superficiels assimilables &agrave; des fissures semi-elliptiques") -> dans ce verre ? {2:NUMERICAL:=1.00E+02:5.00E+00} </p><p><p>On observe en microscopie &eacute;l&eacute;ectronique des micro-d&eacute;fauts superficiels assimilables &agrave; des fissures semi-elliptiques | C23: <p>On observe en microscopie &eacute;l&eacute;ectronique des micro-d&eacute;fauts superficiels assimilables &agrave; des fissures semi-elliptiques dont la profondeur a = #3# &micro;m.<br />5. Quelle est la valeur (en nm) du rayon de courbure du micro-d&eacute;faut le plus s&eacute;v&egrave;re qui a entra&icirc;n&eacute; la rupture de l'&eacute;prouvette de traction ? $5$ \formsol{$$} \minisol{";arrondi(I2;0);"}</p> | K23: =CONCATENATE("1. Si le verre était un matériau parfait, quelle serait la valeur (en MPa) de sa résistance à la traction ? \formsol{$E/10$} \minisol{",ROUND(F7,0),"}\\ ") -> 1. Si le verre était un matériau parfait, quelle serait la valeur (en MPa) de sa résistance à la traction ? \formsol{$E/10$} \minisol{6700}\\
B24: =CONCATENATE(" dont la profondeur a = ",V3.Profond_Vsi," &micro;m.<br />5. Quelle est la valeur (en nm) du rayon de courbure du micro-d&eacute;faut le plus s&eacute;v&egrave;re qui a entra&icirc;n&eacute; la rupture de l'&eacute;prouvette") -> dont la profondeur a = 1.2 &micro;m.<br />5. Quelle est la valeur (en nm) du rayon de courbure du micro-d&eacute;faut le plus s&eacute;v&egrave;re qui a entra&icirc;n&eacute; la rupture de l'&eacute;prouvette | C24: <p>&nbsp;</p> | K24: =CONCATENATE("2. Quelle serait la déformation (en \%) que ce verre pourrait supporter avant de se rompre ? \formsol{$10\%$} \minisol{",ROUND(100*F8,0),"\%} \\") -> 2. Quelle serait la déformation (en \%) que ce verre pourrait supporter avant de se rompre ? \formsol{$10\%$} \minisol{1000\%} \\
B25: =CONCATENATE(" de traction ? ",R5.rho_Vsi," </p><p><p>&nbsp;</p>") -> de traction ? {3:NUMERICAL:=4.80E-01:2.40E-02} </p><p><p>&nbsp;</p> | C25: N'étant pas un matériau parfait, le verre ordinaire a une résistance à la traction Rm proche de #2# MPa. | K25: =CONCATENATE("N'étant pas un matériau parfait, le verre ordinaire a une résistance à la traction Rm proche de ",V2.Rm_Vsi," MPa.\\ ") -> N'étant pas un matériau parfait, le verre ordinaire a une résistance à la traction Rm proche de 67 MPa.\\
K26: =CONCATENATE("3. Quel est l'allongement à rupture d'un tel matériau ? \formsol{$Rm/RmTH$} \minisol{",ROUND(F9,3),"} \% \\ 4. Quelle est la valeur du facteur de concentration de contrainte Kt associée au micro défaut le plus sévère qui existe") -> 3. Quel est l'allongement à rupture d'un tel matériau ? \formsol{$Rm/RmTH$} \minisol{1} \% \\ 4. Quelle est la valeur du facteur de concentration de contrainte Kt associée au micro défaut le plus sévère qui existe
C27: 3. Quel est l'allongement à rupture d'un tel matériau ? $3$ % \formsol{$$} \minisol{;;} | K27: =CONCATENATE("dans ce verre ? \formsol{$Kt = Rth/Rm$ (deuxieme critere de Griffith) } \minisol{",ROUND(F10,0),"} \\On observe en microscopie éléectronique des micro-défauts superficiels assimilables à des fissures semi-elliptiques") -> dans ce verre ? \formsol{$Kt = Rth/Rm$ (deuxieme critere de Griffith) } \minisol{100} \\On observe en microscopie éléectronique des micro-défauts superficiels assimilables à des fissures semi-elliptiques
K28: =CONCATENATE("dont la profondeur a = ",V3.Profond_Vsi," µm. \\5. Quelle est la valeur (en nm) du rayon de courbure du micro-défaut le plus sévère qui a entraîné la rupture de l'éprouvette") -> dont la profondeur a = 1.2 µm. \\5. Quelle est la valeur (en nm) du rayon de courbure du micro-défaut le plus sévère qui a entraîné la rupture de l'éprouvette
C29: 4. Quelle est la valeur du facteur de concentration de contrainte Kt associée au micro défaut le plus sévère qui existe dans ce verre ? $4$ \formsol{$$} \minisol{;;} | K29: =CONCATENATE("de traction ? \formsol{$\rho \approx 4a\left( {\frac{{R_{m,pr} }}{{R_{m,th} }}} \right)^2$} \minisol{",ROUND(F11,2),"} nm") -> de traction ? \formsol{$\rho \approx 4a\left( {\frac{{R_{m,pr} }}{{R_{m,th} }}} \right)^2$} \minisol{0.48} nm
C31: On observe en microscopie éléectronique des micro-défauts superficiels assimilables à des fissures semi-elliptiques dont la profondeur a = #3# µm.
C32: 5. Quelle est la valeur (en nm) du rayon de courbure du micro-défaut le plus sévère qui a entraîné la rupture de l'éprouvette de traction ? $5$ \formsol{$$} \minisol{;;}

Sheet Griffith
A1: feedback_Gri | B1: Griffith | C1: =CONCATENATE(" <!-- question XLQ ", titre_Gri, "-->") -> <!-- question XLQ Griffith_Gri--> | F1: Valeur Mini_Gri | G1: Valeur Maxi_Gri | H1: Sig. Digit_Gri | I1: Val Choix_Gri
B2: Griffith_Gri | C2: =CONCATENATE(" <question type=",CHAR(34),"category",CHAR(34),"><category><text>", categorie_Gri,"</text></category></question>)") -> <question type="category"><category><text>Griffith</text></category></question>) | E2: V1.E_Gri | F2: 65 | G2: 75 | H2: 0 | I2: =RANDBETWEEN(ValMini_Gri*10^-SigDig_Gri, ValMaxi_Gri*10^-SigDig_Gri)/10^-SigDig_Gri -> 68 | J2: Gpa | K2: 74 | P2: 70 | R2: E= | S2: 70000000000 | T2: Pa
A3: Tag_Gri | B3: Griffith_Gri | C3: <question type="cloze"> | E3: V2.Rm_Gri | F3: 50 | G3: 90 | H3: 0 | I3: 56 | J3: Mpa | K3: 75 | P3: 66 | R3: Energie surf | S3: 0.2 | T3: J/m2 | CA3: Une plaque est réalisée en verre ordinaire dont les propriétés sont les suivantes :<p>E = #1# GPa ; Rm = #2# MPa ; gammas = 0,2 J/m2<p>Cette plaque est rectangulaire de dimension :<p>Hauteur = #3# mm; Largeur = #4# mm, Epaisseur = #5# mm;<p>Elle contient, à sa surface, une fissure grossière de caracteristique :<p>profondeur = #6# mm; rayon de courbure en tête de fissure = #7# nm<p>a. Dans ces conditions de chargement de la plaque entaillée calculer la contrainte maximale tolérable selon le critère énergétique de Griffith : \formsol{$$}\minisol{} MPa<p>b. Quelle est la concentration de contrainte induite par l'entaille ? \formsol{$$}\minisol{} [SD]<p>c. Quelle est la contrainte tolérable selon le critère mécanique de Griffith ? \formsol{$$}\minisol{} MPa<p>d. Sous quelle force verticale aura lieu la rupture ? \formsol{$$}\minisol{} kN.<p>Une plaque est réalisée en verre ordinaire dont les propriétés sont les suivantes :<p>E = "",V1.E_Gri,"" GPa ; Rm = "",V2.Rm_Gri,"" MPa ; γS = 0,2 J/m2<p>Cette plaque est rectangulaire de dimension :<p>Hauteur = "",V3.Gamma_Gri,"" mm; Largeur<p>
A4: idnumber_Gri | B4: =TEXT(NOW(),"aammjj-hhmmss.00") -> 210710-210925.17 | C4: =CONCATENATE(" <name><text>", titre_Gri, "</text></name>") -> <name><text>Griffith_Gri</text></name> | E4: V3.Gamma_Gri | F4: 0.1 | G4: 0.3 | H4: -1 | I4: 0.3 | J4: J/m2 | K4: 0.2 | P4: 0.2 | R4: prof | S4: 0.006 | T4: m
A5: points_Gri | B5: 1 | C5: <questiontext format="html"> | E5: V4.Larg_Gri | F5: 70 | G5: 150 | H5: 1 | I5: 140 | J5: mm | K5: 80 | P5: 100 | S5: =SQRT(2*S2*S3/(PI()*S4))/1000000 -> 1.218788799 | T5: Mpa
A6: tolérance_Gri | B6: 0.05 | C6: =CONCATENATE(" <text><![CDATA[<p>", question_Gri, "</p>]]></text>") -> <text><![CDATA[<p> Une plaque est r&eacute;alis&eacute;e en verre ordinaire dont les propri&eacute;t&eacute;s sont les suivantes :<br />E = 68 GPa ; Rm = 56 MPa ; &gamma;<sub>S</sub> = 0,2 J/m2</p><p><p>Cette plaque est rectangulaire de dimension : <br />Hauteur = 200 mm; Largeur = 140 mm, Epaisseur = 13 mm;</p><p><p>Elle contient, &agrave; sa surface, une fissure grossi&egrave;re de caracteristique : <br/> profondeur = 49 microns; rayon de courbure en t&ecirc;te de fissure = 5 nm</p><p><p>a. Dans ces conditions de chargement de la plaque entaill&eacute;e calculer la contrainte maximale tol&eacute;rable selon le crit&egrave;re &eacute;nerg&eacute;tique de Griffith : {2:NUMERICAL:=1.63E+01:8.14E-01}MPa <br />b. Quelle est la concentration de contrainte induite par l'entaille ? {2:NUMERICAL:=1.98E+02:9.90E+00} [SD]<br />c. Quelle est la contrainte tol&eacute;rable selon le crit&egrave;re m&eacute;canique de Griffith ? {3:NUMERICAL:=3.43E+01:1.72E+00} MPa<br />d. Sous quelle force verticale aura lieu la rupture ? {4:NUMERICAL:=3.60E+02:1.80E+01} kN.</p>]]></text> | E6: V5.Epais_Gri | F6: 5 | G6: 25 | H6: 0 | I6: 13 | J6: mm | K6: 17 | P6: 11
A7: penalité_Gri | B7: 0.1 | C7: </questiontext> | E7: V6.Profond_Gri | F7: 10 | G7: 60 | H7: 0 | I7: 49 | J7: µm | K7: 38 | P7: 3000 | R7: RACINE(2*mod*Energie_surf/(PI()*prof))
A8: feedback_Gri | B8: _ | C8: =CONCATENATE(" <defaultgrade>",points_Gri,"</defaultgrade><generalfeedback><text>",feedback_Gri,"</text></generalfeedback><penalty>",penalty_Gri,"</penalty><hidden>0</hidden>)") -> <defaultgrade>1</defaultgrade><generalfeedback><text>_</text></generalfeedback><penalty>0.1</penalty><hidden>0</hidden>) | E8: V7.rho_Gri | F8: 1 | G8: 5 | H8: 0 | I8: 5 | J8: nm | K8: 2 | P8: 4
A9: Cellule vides_Gri | B9: =COUNTBLANK(B1:B8) -> 0 | C9: =CONCATENATE(" <idnumber>",idnumber_Gri,"</idnumber><tags><tag><text>",Tag_Gri,"</text></tag></tags>") -> <idnumber>210710-210925.17</idnumber><tags><tag><text>Griffith_Gri</text></tag></tags> | I9: 0 | M9: =SQRT(2*mod*Energie_surf/(PI()*prof)) -> 
A10: question format HTML_Gri | B10: =CONCATENATE(" ",B19,B20,B21,B22,B23,B24,B25,B26,B27,B28,B29) -> Une plaque est r&eacute;alis&eacute;e en verre ordinaire dont les propri&eacute;t&eacute;s sont les suivantes :<br />E = 68 GPa ; Rm = 56 MPa ; &gamma;<sub>S</sub> = 0,2 J/m2</p><p><p>Cette plaque est rectangulaire de dimension : <br />Hauteur = 200 mm; Largeur = 140 mm, Epaisseur = 13 mm;</p><p><p>Elle contient, &agrave; sa surface, une fissure grossi&egrave;re de caracteristique : <br/> profondeur = 49 microns; rayon de courbure en t&ecirc;te de fissure = 5 nm</p><p><p>a. Dans ces conditions de chargement de la plaque entaill&eacute;e calculer la contrainte maximale tol&eacute;rable selon le crit&egrave;re &eacute;nerg&eacute;tique de Griffith : {2:NUMERICAL:=1.63E+01:8.14E-01}MPa <br />b. Quelle est la concentration de contrainte induite par l'entaille ? {2:NUMERICAL:=1.98E+02:9.90E+00} [SD]<br />c. Quelle est la contrainte tol&eacute;rable selon le crit&egrave;re m&eacute;canique de Griffith ? {3:NUMERICAL:=3.43E+01:1.72E+00} MPa<br />d. Sous quelle force verticale aura lieu la rupture ? {4:NUMERICAL:=3.60E+02:1.80E+01} kN. | C10: </question> | F10: Cible_Gri | G10: Toler_Gri | H10: PointsQuestion_Gri | P10: 40.7
A11: Repere Var Rep | B11: _Gri | E11: R1.SigEner_Gri | F11: =ROUND(SQRT((2*V1.E_Gri*1000000000*V3.Gamma_Gri)/(PI()*V6.Profond_Gri*0.000001)),-2)/1000000 -> 16.2801 | G11: =tolerance_Gri*ValMini_Gri -> 0.814005 | H11: 2 | I11: =CONCATENATE("{",PointsQuestion_Gri,":NUMERICAL:=",TEXT(Cible_Gri,"0.00E+00"),":",TEXT(ABS(Tolere_Gri),"0.00E+00"),"}") -> {2:NUMERICAL:=1.63E+01:8.14E-01} | P11: 70.71067812
A12: HTML File | B12: =CONCATENATE(categorie_Gri,"_HTML.txt") -> Griffith_HTML.txt | E12: R2.KT_Gri | F12: =2*SQRT(V6.Profond_Gri*0.000001/(V7.rho_Gri*0.000000001)) -> 197.9898987 | G12: =tolerance_Gri*ValMini_Gri -> 9.899494937 | H12: 2 | I12: =CONCATENATE("{",PointsQuestion_Gri,":NUMERICAL:=",TEXT(Cible_Gri,"0.00E+00"),":",TEXT(ABS(Tolere_Gri),"0.00E+00"),"}") -> {2:NUMERICAL:=1.98E+02:9.90E+00} | P12: 91.92388155
A13: Valide ? | B13: =ISNUMBER(F15) -> TRUE | E13: R3.SigMec_Gri | F13: =(1000*V1.E_Gri/10)/(F12) -> 34.34518651 | G13: =tolerance_Gri*ValMini_Gri -> 1.717259326 | H13: 3 | I13: =CONCATENATE("{",PointsQuestion_Gri,":NUMERICAL:=",TEXT(Cible_Gri,"0.00E+00"),":",TEXT(ABS(Tolere_Gri),"0.00E+00"),"}") -> {3:NUMERICAL:=3.43E+01:1.72E+00} | P13: 101.1162697
A14: https://html-online.com/editor/ | E14: R4.Force_Gri | F14: =MAX(F13,F12)*V4.Larg_Gri*V5.Epais_Gri/1000 -> 360.3416157 | G14: =tolerance_Gri*ValMini_Gri -> 18.01708078 | H14: 4 | I14: =CONCATENATE("{",PointsQuestion_Gri,":NUMERICAL:=",TEXT(Cible_Gri,"0.00E+00"),":",TEXT(ABS(Tolere_Gri),"0.00E+00"),"}") -> {4:NUMERICAL:=3.60E+02:1.80E+01}
C15: 9 | F15: =SUM(F11:H14) -> 650.404641
A16: Var : | B16: # | C16: 7
A17: Res : | B17: $ | C17: 4
B19: =CONCATENATE("Une plaque est r&eacute;alis&eacute;e en verre ordinaire dont les propri&eacute;t&eacute;s sont les suivantes :<br />E = ",V1.E_Gri," GPa ; Rm = ",V2.Rm_Gri," MPa ; &gamma;<sub>S</sub> = 0,2 J/m2</p><p><p>Cette") -> Une plaque est r&eacute;alis&eacute;e en verre ordinaire dont les propri&eacute;t&eacute;s sont les suivantes :<br />E = 68 GPa ; Rm = 56 MPa ; &gamma;<sub>S</sub> = 0,2 J/m2</p><p><p>Cette | K19: =CONCATENATE("Une plaque est réalisée en verre ordinaire dont les propriétés sont les suivantes : \\E = ",V1.E_Gri," GPa ; Rm = ",V2.Rm_Gri," MPa ; $\gamma_s $= 0,2 J/m2 \\ Cette plaque est rectangulaire de dimension :\\Hauteur = 10cm;") -> Une plaque est réalisée en verre ordinaire dont les propriétés sont les suivantes : \\E = 68 GPa ; Rm = 56 MPa ; $\gamma_s $= 0,2 J/m2 \\ Cette plaque est rectangulaire de dimension :\\Hauteur = 10cm;
B20: =CONCATENATE(" plaque est rectangulaire de dimension : <br />Hauteur = 200 mm; Largeur = ",V4.Larg_Gri," mm, Epaisseur = ",V5.Epais_Gri," mm;</p><p><p>Elle contient, &agrave; sa surface, une fissure grossi&egrave;re de caracteristique : <br") -> plaque est rectangulaire de dimension : <br />Hauteur = 200 mm; Largeur = 140 mm, Epaisseur = 13 mm;</p><p><p>Elle contient, &agrave; sa surface, une fissure grossi&egrave;re de caracteristique : <br | C20: Une plaque est réalisée en verre ordinaire dont les propriétés sont les suivantes : | K20: =CONCATENATE("Largeur = ",V4.Larg_Gri," mm, Epaisseur = ",V5.Epais_Gri," mm; \\ Elle contient, à sa surface, une fissure grossière de caracteristique :\\profondeur = ",V6.Profond_Gri," µm; rayon de courbure en tête de fissure = ",V7.rho_Gri," nm\\a. Dans ces conditions") -> Largeur = 140 mm, Epaisseur = 13 mm; \\ Elle contient, à sa surface, une fissure grossière de caracteristique :\\profondeur = 49 µm; rayon de courbure en tête de fissure = 5 nm\\a. Dans ces conditions
B21: =CONCATENATE("/> profondeur = ",V6.Profond_Gri," microns; rayon de courbure en t&ecirc;te de fissure = ",V7.rho_Gri," nm</p><p><p>a. Dans ces conditions de chargement de la plaque entaill&eacute;e calculer la contrainte maximale tol&eacute;rable selon") -> /> profondeur = 49 microns; rayon de courbure en t&ecirc;te de fissure = 5 nm</p><p><p>a. Dans ces conditions de chargement de la plaque entaill&eacute;e calculer la contrainte maximale tol&eacute;rable selon | C21: E = #1# GPa ; Rm = #2# MPa ; gammas = 0,2 J/m2 | K21: =CONCATENATE("de chargement de la plaque entaillée calculer la contrainte maximale tolérable selon le critère énergétique de Griffith : \formsol{$\sigma _{nom} \ge \sqrt {\frac{{2E\gamma _s }}{{\pi a}}}$}\minisol{",ROUND(F11,0),"} MPa \\b. Quelle est la concentration de contrainte induite") -> de chargement de la plaque entaillée calculer la contrainte maximale tolérable selon le critère énergétique de Griffith : \formsol{$\sigma _{nom} \ge \sqrt {\frac{{2E\gamma _s }}{{\pi a}}}$}\minisol{16} MPa \\b. Quelle est la concentration de contrainte induite
B22: =CONCATENATE(" le crit&egrave;re &eacute;nerg&eacute;tique de Griffith : ",R1.SigEner_Gri,"MPa <br />b. Quelle est la concentration de contrainte induite par l'entaille ? ",R2.KT_Gri," [SD]<br />c. Quelle est la contrainte tol&eacute;rable selon") -> le crit&egrave;re &eacute;nerg&eacute;tique de Griffith : {2:NUMERICAL:=1.63E+01:8.14E-01}MPa <br />b. Quelle est la concentration de contrainte induite par l'entaille ? {2:NUMERICAL:=1.98E+02:9.90E+00} [SD]<br />c. Quelle est la contrainte tol&eacute;rable selon | K22: =CONCATENATE("par l'entaille ? \formsol{$K_t=2\sqrt{\frac{a}{\rho}}$}\minisol{",ROUND(F12,0),"} [SD]\\c. Quelle est la contrainte tolérable selon le critère mécanique de Griffith ? \formsol{$\sigma_{loc} = Rm => \sigma_{mac} = RmTH / Kt $}\minisol{",ROUND(F13,0),"} MPa\\d. Sous quelle force verticale aura lieu la rupture") -> par l'entaille ? \formsol{$K_t=2\sqrt{\frac{a}{\rho}}$}\minisol{198} [SD]\\c. Quelle est la contrainte tolérable selon le critère mécanique de Griffith ? \formsol{$\sigma_{loc} = Rm => \sigma_{mac} = RmTH / Kt $}\minisol{34} MPa\\d. Sous quelle force verticale aura lieu la rupture
B23: =CONCATENATE(" le crit&egrave;re m&eacute;canique de Griffith ? ",R3.SigMec_Gri," MPa<br />d. Sous quelle force verticale aura lieu la rupture ? ",R4.SigTot_Gri," kN.") -> le crit&egrave;re m&eacute;canique de Griffith ? {3:NUMERICAL:=3.43E+01:1.72E+00} MPa<br />d. Sous quelle force verticale aura lieu la rupture ? {4:NUMERICAL:=3.60E+02:1.80E+01} kN. | C23: Cette plaque est rectangulaire de dimension : | K23: =CONCATENATE("? \formsol{$F = \sigma \times S_0$}\minisol{",ROUND(F14,0),"} kN.") -> ? \formsol{$F = \sigma \times S_0$}\minisol{360} kN.
C24: Hauteur = #3# mm; Largeur = #4# mm, Epaisseur = #5# mm;
B25: =CONCATENATE("") -> 
B26: =CONCATENATE("") ->  | C26: Elle contient, à sa surface, une fissure grossière de caracteristique :
B27: =CONCATENATE("") ->  | C27: profondeur = #6# mm; rayon de courbure en tête de fissure = #7# nm
B28: =CONCATENATE("") -> 
B29: =CONCATENATE("") ->  | C29: a. Dans ces conditions de chargement de la plaque entaillée calculer la contrainte maximale tolérable selon le critère énergétique de Griffith : \formsol{$$}\minisol{} MPa
C30: b. Quelle est la concentration de contrainte induite par l'entaille ? \formsol{$$}\minisol{} [SD]
C31: c. Quelle est la contrainte tolérable selon le critère mécanique de Griffith ? \formsol{$$}\minisol{} MPa
C32: d. Sous quelle force verticale aura lieu la rupture ? \formsol{$$}\minisol{} kN.

Sheet WeiPara
A1: catégorie_Wei | B1: WeiPara | C1: =CONCATENATE(" <!-- question XLQ ", titre_Wei, "-->") -> <!-- question XLQ WeiPara_Wei--> | F1: Valeur Mini_Wei | G1: Valeur Maxi_Wei | H1: Sig. Digit_Wei | I1: Val Choix_Wei | O1: rigoureux contrainte | P1: ln(-ln(1-p))
B2: WeiPara_Wei | C2: =CONCATENATE(" <question type=",CHAR(34),"category",CHAR(34),"><category><text>", categorie_Wei,"</text></category></question>)") -> <question type="category"><category><text>WeiPara</text></category></question>) | E2: V1._Wei | F2: =Contr_Rig*(1-Randm_Wei*RAND()) -> 5.239621627 | G2: =Contr_Rig*(1+Randm_Wei*RAND()/100) -> 5.323863378 | H2: -2 | I2: =ROUND(EXP(RANDBETWEEN(ValMini_Wei*10^-SigDig_Wei, ValMaxi_Wei*10^-SigDig_Wei)/10^-SigDig_Wei),0) -> 192 | K2: log Sig | L2: MPa | N2: 1 | O2: =(Proba_Wei-Ordonnee)/Module -> 5.323316816 | P2: =LN(-LN(1-N2/10)) -> -2.250367327 | S2: pente | T2: ordo
A3: Tag_Wei | B3: WeiPara_Wei | C3: <question type="cloze"> | E3: V2._Wei | F3: 5.477055825 | G3: 5.483319615 | H3: -2 | I3: 240 | K3: log Sig | L3: MPa | N3: 2 | O3: =(Proba_Wei-Ordonnee)/Module -> 5.482982208 | P3: -1.499939987 | S3: =LINEST(P2:P10,O2:O10,1,1) -> 4.7 | T3: -27.26995636 | CA3: <p>On r&eacute;alise des exp&eacute;riences traction sur un mat&eacute;riau fragile. On obtient un ensemble de contraintes &agrave; rupture suivant : "";V9._Wei;"", "";V7._Wei;"", "";V5._Wei;"", "";V3._Wei;"", "";V4._Wei;"", "";V6._Wei;"", "";V2._Wei;"", "";V8._Wei;"", "";V1._Wei;"" MPa. En deduire les param&egrave;tres de Weibull associ&eacute;s :</p><p><p>&nbsp;</p><p><p>Le module m="";Module;""</p><p><p>&nbsp;</p><p><p>&nbsp;</p><p><p>Le facteur d'&eacute;chelle Ko="";Facteur_Echelle;"" MPa</p><p><p>&nbsp;</p><p>
A4: idnumber_Wei | B4: =TEXT(NOW(),"aammjj-hhmmss.00") -> 210710-210925.17 | C4: =CONCATENATE(" <name><text>", titre_Wei, "</text></name>") -> <name><text>WeiPara_Wei</text></name> | E4: V3._Wei | F4: =Contr_Rig*(1-Randm_Wei*RAND()) -> 5.576843409 | G4: =Contr_Rig*(1+Randm_Wei*RAND()/100) -> 5.582899623 | H4: -2 | I4: =ROUND(EXP(RANDBETWEEN(ValMini_Wei*10^-SigDig_Wei, ValMaxi_Wei*10^-SigDig_Wei)/10^-SigDig_Wei),0) -> 265 | K4: log Sig | L4: MPa | N4: 3 | O4: =(Proba_Wei-Ordonnee)/Module -> 5.582771475 | P4: -1.030930433 | S4: 3.075975823e-15 | T4: 1.753692891e-14
A5: points_Wei | B5: 1 | C5: <questiontext format="html"> | E5: V4._Wei | F5: 5.60954419 | G5: 5.660228039 | H5: -2 | I5: 284 | K5: log Sig | L5: MPa | N5: 4 | O5: 5.659197739 | P5: -0.6717269921 | S5: 1 | T5: 1.823626411e-15
A6: tolérance_Wei | B6: 0.25 | C6: =CONCATENATE(" <text><![CDATA[<p>", question_Wei, "</p>]]></text>") -> <text><![CDATA[<p> On r&eacute;alise des exp&eacute;riences traction sur un mat&eacute;riau fragile. On obtient un ensemble de contraintes &agrave; rupture suivantes : 376, 344, 293, 265, 284, 324, 240, 365, 192 MPa. En deduire les param&egrave;tres de Weibull associ&eacute;s :</p><p><p>&nbsp;</p><p><p>Le module m={1:NUMERICAL:=4.70E+00:1.18E+00}</p><p><p>&nbsp;</p><p><p>&nbsp;</p><p><p>Lefacteur d'&eacute;chelle Ko={1:NUMERICAL:=3.26E+02:8.14E+01} MPa</p><p><p>&nbsp;</p><p></p>]]></text> | E6: V5._Wei | F6: 5.678623259 | G6: 5.725188182 | H6: -2 | I6: 293 | K6: log Sig | L6: MPa | N6: 5 | O6: 5.724136903 | P6: -0.3665129206 | S6: 2.334693534e+30 | T6: 7
A7: penalité_Wei | B7: 0.1 | C7: </questiontext> | E7: V6._Wei | F7: 5.764854677 | G7: 5.783560481 | H7: -2 | I7: 324 | K7: log Sig | L7: MPa | N7: 6 | O7: 5.783518041 | P7: -0.08742157179 | S7: 7.76428784 | T7: 2.327929302e-29
A8: feedback_Wei | B8: _ | C8: =CONCATENATE(" <defaultgrade>",points_Wei,"</defaultgrade><generalfeedback><text>",feedback_Wei,"</text></generalfeedback><penalty>",penalty_Wei,"</penalty><hidden>0</hidden>)") -> <defaultgrade>1</defaultgrade><generalfeedback><text>_</text></generalfeedback><penalty>0.1</penalty><hidden>0</hidden>) | E8: V7._Wei | F8: 5.770740703 | G8: 5.84238612 | H8: -2 | I8: 344 | K8: log Sig | L8: MPa | N8: 7 | O8: 5.84161343 | P8: 0.1856267589
A9: Cellule vides_Wei | B9: =COUNTBLANK(B1:B8) -> 0 | C9: =CONCATENATE(" <idnumber>",idnumber_Wei,"</idnumber><tags><tag><text>",Tag_Wei,"</text></tag></tags>") -> <idnumber>210710-210925.17</idnumber><tags><tag><text>WeiPara_Wei</text></tag></tags> | E9: V8._Wei | F9: 5.884483448 | G9: 5.903598921 | H9: -2 | I9: 365 | K9: log Sig | L9: MPa | N9: 8 | O9: 5.903370502 | P9: 0.4758849953 | T9: =EXP(-T3/S3) -> 331
A10: question format HTML_Wei | B10: =CONCATENATE(" ",B19,B20,B21,B22,B23,B24) -> On r&eacute;alise des exp&eacute;riences traction sur un mat&eacute;riau fragile. On obtient un ensemble de contraintes &agrave; rupture suivantes : 376, 344, 293, 265, 284, 324, 240, 365, 192 MPa. En deduire les param&egrave;tres de Weibull associ&eacute;s :</p><p><p>&nbsp;</p><p><p>Le module m={1:NUMERICAL:=4.70E+00:1.18E+00}</p><p><p>&nbsp;</p><p><p>&nbsp;</p><p><p>Lefacteur d'&eacute;chelle Ko={1:NUMERICAL:=3.26E+02:8.14E+01} MPa</p><p><p>&nbsp;</p><p> | C10: </question> | E10: V9._Wei | F10: 5.913417326 | G10: 5.980390022 | H10: -2 | I10: 376 | K10: log Sig | L10: MPa | N10: 9 | O10: 5.979572087 | P10: 0.8340324452
A11: Repere Var Rep | B11: _Wei | E11: 1-- V10._Wei | F11: 250 | G11: 350 | H11: 0 | I11: =RANDBETWEEN(ValMini_Wei*10^-SigDig_Wei, ValMaxi_Wei*10^-SigDig_Wei)/10^-SigDig_Wei -> 331 | J11: moyenne | K11: log Sig | L11: MPa
A12: HTML File | B12: =CONCATENATE(categorie_Wei,"_HTML.txt") -> WeiPara_HTML.txt
A13: Valide ? | E13: alea | F13: 1.8 | G13: 2.5 | H13: -1 | I13: =RANDBETWEEN(ValMini_Wei*10^-SigDig_Wei, ValMaxi_Wei*10^-SigDig_Wei)/10^-SigDig_Wei/100 -> 0.021
A14: https://html-online.com/editor/ | E14: 2-- Ordo | I14: =-Module*LN(V10._Wei) -> -27.26995636 | J14: ordonnée | L14: verif s | M14: =EXP(-I14/I15) -> 331 | R14: =100*ABS(R17/R16)+ABS(S17/S16) -> 4.404236048
C15: 9 | E15: 1 --m | F15: 1 | G15: 10 | H15: -1 | I15: =RANDBETWEEN(ValMini_Wei*10^-SigDig_Wei, ValMaxi_Wei*10^-SigDig_Wei)/10^-SigDig_Wei -> 4.7 | J15: pente | L15: Extracted s | M15: =EXP(-Ordonnee/Module) -> 331 | O15: sig exp | P15: ln exp | R15: pente | S15: ordo
A16: Var : | B16: # | C16: 7 | F16: Cible_Wei | G16: Toler_Wei | H16: PointsQuestion_Wei | O16: =LN(I2) -> 5.257495372 | P16: =P2 -> -2.250367327 | R16: =LINEST(P16:P24,O16:O24,1,1) -> 4.515308458 | S16: -26.1260063
A17: Res : | B17: $ | C17: 2 | E17: R1.Module_Wei | F17: =I15 -> 4.7 | G17: =tolerance_Wei*ValMini_Wei -> 1.175 | H17: 1 | I17: =CONCATENATE("{",PointsQuestion_Wei,":NUMERICAL:=",TEXT(Cible_Wei,"0.00E+00"),":",TEXT(ABS(Tolere_Wei),"0.00E+00"),"}") -> {1:NUMERICAL:=4.70E+00:1.18E+00} | O17: 5.480638923 | P17: -1.499939987 | R17: 0.1969312256 | S17: 1.11880938
E18: R2.Exp_Wei | F18: =Facteur_Echelle -> 325.7387167 | G18: =tolerance_Wei*ValMini_Wei -> 81.43467917 | H18: 1 | I18: =CONCATENATE("{",PointsQuestion_Wei,":NUMERICAL:=",TEXT(Cible_Wei,"0.00E+00"),":",TEXT(ABS(Tolere_Wei),"0.00E+00"),"}") -> {1:NUMERICAL:=3.26E+02:8.14E+01} | O18: 5.579729826 | P18: -1.030930433 | R18: 0.9868596256 | S18: 0.120727349
B19: =CONCATENATE("On r&eacute;alise des exp&eacute;riences traction sur un mat&eacute;riau fragile. On obtient un ensemble de contraintes &agrave; rupture suivantes : ",V9._Wei,", ",V7._Wei,", ",V5._Wei,", ",V3._Wei,",") -> On r&eacute;alise des exp&eacute;riences traction sur un mat&eacute;riau fragile. On obtient un ensemble de contraintes &agrave; rupture suivantes : 376, 344, 293, 265, | C19: <p>On r&eacute;alise des exp&eacute;riences traction sur un mat&eacute;riau fragile. On obtient un ensemble de contraintes &agrave; rupture suivant : ";V9._Wei;", ";V7._Wei;", ";V5._Wei;", ";V3._Wei;", ";V4._Wei;", ";V6._Wei;", ";V2._Wei;", ";V8._Wei;", ";V1._Wei;" MPa. En deduire les param&egrave;tres de Weibull associ&eacute;s :</p> | O19: 5.648974238 | P19: -0.6717269921 | R19: 525.7093249 | S19: 7
B20: =CONCATENATE(" ",V4._Wei,", ",V6._Wei,", ",V2._Wei,", ",V8._Wei,", ",V1._Wei," MPa. En deduire les param&egrave;tres de Weibull associ&eacute;s :</p><p><p>&nbsp;</p><p><p>Le module m=",R1.Module_Wei,"</p><p><p>&nbsp;</p><p><p>&nbsp;</p><p><p>Le") -> 284, 324, 240, 365, 192 MPa. En deduire les param&egrave;tres de Weibull associ&eacute;s :</p><p><p>&nbsp;</p><p><p>Le module m={1:NUMERICAL:=4.70E+00:1.18E+00}</p><p><p>&nbsp;</p><p><p>&nbsp;</p><p><p>Le | C20: <p>&nbsp;</p> | O20: 5.680172609 | P20: -0.3665129206 | R20: 7.662262191 | S20: 0.1020256495
B21: =CONCATENATE("facteur d'&eacute;chelle Ko=",R2.Exp_Wei," MPa</p><p><p>&nbsp;</p><p>") -> facteur d'&eacute;chelle Ko={1:NUMERICAL:=3.26E+02:8.14E+01} MPa</p><p><p>&nbsp;</p><p> | C21: <p>Le module m=";Module;"</p> | O21: 5.780743516 | P21: -0.08742157179
B22: =CONCATENATE("") ->  | C22: <p>&nbsp;</p> | O22: 5.840641657 | P22: 0.1856267589
B23: =CONCATENATE("") ->  | C23: <p>&nbsp;</p> | O23: 5.899897354 | P23: 0.4758849953 | R23: Facteur Echelle | S23: =EXP(-S16/R16) -> 325.7387167
B24: =CONCATENATE("") ->  | C24: <p>Le facteur d'&eacute;chelle Ko=";Facteur_Echelle;" MPa</p> | O24: 5.929589143 | P24: 0.8340324452
C25: <p>&nbsp;</p>
O27: =CONCATENATE("On réalise des expériences traction sur un matériau fragile. On obtient un ensemble de contraintes à rupture suivant : ",V9._Wei,", ",V7._Wei,", ",V5._Wei,", ",V3._Wei,", ",V4._Wei,", ",V6._Wei,", ",V2._Wei,", ",V8._Wei,", ",V1._Wei," MPa. En deduire les paramètres de Weibull associés :\\") -> On réalise des expériences traction sur un matériau fragile. On obtient un ensemble de contraintes à rupture suivant : 376, 344, 293, 265, 284, 324, 240, 365, 192 MPa. En deduire les paramètres de Weibull associés :\\
O28: =CONCATENATE("Le module \minisol{m=",Module,"}\\") -> Le module \minisol{m=4.7}\\
O29: =CONCATENATE("Le facteur d'échelle Ko=\minisol{",ROUND(Facteur_Echelle,0),"} MPa") -> Le facteur d'échelle Ko=\minisol{326} MPa
